{"text_format":"1","workbook":"xlsx","n_sheets":9,"sheets":["MENU","SAISIE","CLIENTS","PRODUITS","FE","FE2","ADMIN","RECUP","MAIL"],"not_rendered":{"charts":0,"images":2,"macros":1,"external_links":0,"defined_names":20,"comments":2,"pivot_tables":0},"unopened":[],"bounds":{"document_bytes":16777216,"sheet_cells":100000,"rows_first":2000,"rows_last":500,"rows_between":2000,"halvings":0,"cell_chars":16384,"cell_head_chars":4096},"cells_cut":0,"cells_raw":0,"read":"whole","date_system":"1900"}

{"sheet":"MENU","index":0,"n_rows":7,"n_cols":2,"rows_kept":7,"cut":false,"hidden":false,"merged":[[23,1,23,10],[6,1,6,10],[29,1,29,10]]}
[]
[]
[]
[]
[]
[]
[null,{"$f":"ADMIN!O16","v":"Vous êtes ADMINISTRATEUR du fichier"}]

{"sheet":"SAISIE","index":1,"n_rows":43,"n_cols":9,"rows_kept":43,"cut":false,"hidden":true,"merged":[[15,6,15,7],[12,6,12,7],[10,1,10,3],[11,1,11,3],[8,6,8,7],[14,6,14,7],[11,6,11,7],[1,6,1,7],[1,4,1,5],[4,6,4,7],[7,6,7,7],[9,6,9,7]]}
[]
[null,"A rédiger informatiquement et intégralement\n(joindre les devis)",null,null,"N° Client : "]
[]
["NOM EQUIPE : ",null,null,null,null,null,"date d'Edition :"]
["RESPONSABLE : ",null,null,null,null,null,{"$f":"TODAY()","v":"2026-04-20"}]
[]
["  DEMANDEUR :\nNOM & PRENOM"]
[null,null,null,null,null,"Contact","Cathy   COXE"]
[null,null,null,null,null,"Tél Magasin",413945745]
[null,null,null,null,null,"E-mail générique","fscm-scpml@univ-amu.fr"]
["FOURNISSEUR :","MAGASIN UNIVERSITE - S.C.P.M.L."]
[null,"SERVICE COMMUN DE PRODUITS ET MATERIELS DE LABORATOIRE",null,null,null,"Contact","Driss   SAHRAOUI"]
["adresse :","FACULTÉ DES SCIENCES ET TECHNIQUES DE SAINT JÉRÔME",null,null,null,"Tél Magasin",413945747]
["adresse :","AVENUE ESCADRILLE NORMANDIE NIEMEN"]
["adresse :","13 397 MARSEILLE CEDEX",null,null,null,"Contact","Vincenzo   SCIFO"]
[null,null,null,null,null,"Tél Magasin",413945757]
[]
[]
[]
[]
["NOM FOURNISSEUR","MATERIEL & PRODUITS","CATEGORIE","REFERENCE","Qté","Prix Unit HT","TOTAL HT","TOTAL TTC","Concat"]
[null,null,null,null,null,null,{"$f":"F22*E22","v":0},{"$f":"G22*1.2","v":0},{"$f":"A22&\"-\"&B22&\"-\"&D22&\"-\"&E22&\"-\"&F22","v":"----"}]
[null,null,null,null,null,null,{"$f":"F23*E23","v":0},{"$f":"G23*1.2","v":0},"----"]
[null,null,null,null,null,null,{"$f":"F24*E24","v":0},{"$f":"G24*1.2","v":0},{"$f":"A24&\"-\"&B24&\"-\"&D23&\"-\"&E24&\"-\"&F24","v":"----"}]
[null,null,null,null,null,null,{"$f":"F25*E25","v":0},0,"----"]
[null,null,null,null,null,null,{"$f":"F26*E26","v":0},0,"----"]
[null,null,null,null,null,null,0,0,"----"]
[null,null,null,null,null,null,0,0,"----"]
[null,null,null,null,null,null,0,0,"----"]
[null,null,null,null,null,null,0,0,"----"]
[null,null,null,null,null,null,0,0,"----"]
[null,null,null,null,null,null,0,0,"----"]
[null,null,null,null,null,null,0,0,"----"]
[null,null,null,null,null,null,0,0,"----"]
[null,null,null,null,null,null,0,0,"----"]
[null,null,null,null,null,null,0,0,"----"]
[null,null,null,null,null,null,0,0,"----"]
[null,null,null,null,null,null,0,0,"----"]
[null,null,null,null,null,null,0,0,"----"]
[null,null,null,null,null,null,0,0,"----"]
[null,null,null,null,null,null,0,0,"----"]
[null,null,null,null,null,"HT","T.V.A.","TOTAL T.T.C."]
[null,null,null,null,null,{"$f":"SUM(G22:G41)","v":0},{"$f":"Total_TTC-F43","v":0},{"$f":"SUM(H22:H41)","v":0}]

{"sheet":"CLIENTS","index":2,"n_rows":422,"n_cols":5,"rows_kept":422,"cut":false,"hidden":true,"merged":[]}
["Tab_Clients"]
["N° Client","Laboratoire","Equipe","Responsable Equipe","Nom Equipe"]
["200 - 1","FÉDÉRATION DE CHIMIE - Spectropole","SPECTROPOLE","Valérie MONNIER","FÉDÉRATION DE CHIMIE - Spectropole"]
["200 - 10","ANR FESTNOS",null,"CABIE Martiane","ANR FESTNOS"]
["200 - 11","ANR HEBUTERNE",null,"CABIE Martiane","ANR HEBUTERNE"]
["200 - 12","ANR FOCS",null,"Pierre THUREAU","ANR FOCS"]
["200 - 13","ANR MICRONMR",null,"Giulia MOLLICA","ANR MICRONMR"]
["200 - 2","FÉDÉRATION DE CHIMIE - CP2M","CP2M","Christan DOMINICI","FÉDÉRATION DE CHIMIE - CP2M"]
["200 - 3","FÉDÉRATION DE CHIMIE - PRATIM","PRATIM","Alain TONETTO","FÉDÉRATION DE CHIMIE - PRATIM"]
["200 - 4","SCSV","SCSV","Frédérique BERGER","SCSV"]
["200 - 5","FÉDÉRATION DE CHIMIE - gestion","Gestion Fédération","Pierre THUREAU","FÉDÉRATION DE CHIMIE - gestion"]
["200 - 6","FEDERATION DE CHIMIE - CHIROPOLE","CHIROPOLE","VANTHUYNE Nicolas","FEDERATION DE CHIMIE - CHIROPOLE"]
["200 - 7","ANR NANOSLIM","Nanoslim","Martiane CABIE","ANR NANOSLIM"]
["200 - 8","ANR ELECTRON",null,"ZIARELLI Fabio","ANR ELECTRON"]
["200 - 9","ANR Diamond-NMR",null,"Stéphane VIEL","ANR Diamond-NMR"]
["201 - 1","ISM2 - UMR 7313 STEREO","STEREO","Damien BONNE","ISM2 - UMR 7313 STEREO"]
["201 - 10","Maylis ORIO","ISM2","T.TRON","Maylis ORIO"]
["201 - 2","ISM2 - UMR 7313 CHIROSCIENCES Balaban","BALABAN","Balaban","ISM2 - UMR 7313 CHIROSCIENCES Balaban"]
["201 - 3","ISM2 - UMR 7313 CHIROSCIENCES MARTINEZ","CHIROSCIENCES ","MARTINEZ Alexandre","ISM2 - UMR 7313 CHIROSCIENCES MARTINEZ"]
["201 - 4","ISM2 - UMR 7313 Chirosciences Mazzouza","CHIROSCIENCES - Mazzouza","Malika MAZZOUZA","ISM2 - UMR 7313 Chirosciences Mazzouza"]
["201 - 5","ISM2 - UMR 7313 Chirosciences Righezza","CHIROSCIENCES - Righezza","Michel RIGHEZZA","ISM2 - UMR 7313 Chirosciences Righezza"]
["201 - 6","ISM2 - UMR 7313 CHIROSCIENCES",null,"RousselChristian","ISM2 - UMR 7313 CHIROSCIENCES"]
["201 - 7","ISM2 - Equipe Commune","Equipe commune","Sabine Chevallier","ISM2 - Equipe Commune"]
["201 - 8","ISM2 - UMR 7313 BIOSCIENCES","BIOSCIENCES ","Thierry TRON","ISM2 - UMR 7313 BIOSCIENCES"]
["201 - 9","ISM2 - UMR 7313 CTOM","CTOM","CARISSAN Yannick","ISM2 - UMR 7313 CTOM"]
["202 - 1","IM2NP - UMR 7334 RDI","RDI ","Khalid Hoummada","IM2NP - UMR 7334 RDI"]
["202 - 10","IM2NP - UMR 7334 MICRO-CAPTEUR","MICRO-CAPTEUR (mci)","BENEVENT Evangeline","IM2NP - UMR 7334 MICRO-CAPTEUR"]
["202 - 11","IM2NP - UMR 7334 OPTO - PV","OPTO - PV","L. ESCOUBAS - JJ SIMON","IM2NP - UMR 7334 OPTO - PV"]
["202 - 12","IM2NP - UMR 7334 service appui","Service d'appui à la Recherche","DERIVAUX Frédéric","IM2NP - UMR 7334 service appui"]
["202 - 13","IM2NP - UMR 7334 MUTEN","MUTEN","Charai Ahmed","IM2NP - UMR 7334 MUTEN"]
["202 - 14","IM2NP - UMR 7334 Mémoires","Mémoires","LALANDE Frédéric","IM2NP - UMR 7334 Mémoires"]
["202 - 15","IM2NP - UMR 7334 ERFE","ERFE","AUTRAN Jean Luc","IM2NP - UMR 7334 ERFE"]
["202 - 16","IM2NP - UMR 7334 - Hygiène et Sécurite","Hygiene et Sécurité","Georges Mikaelian","IM2NP - UMR 7334 - Hygiène et Sécurite"]
["202 - 17","IM2NP - UMR 7334 - MNO","MNO","Thomas Walter CORNELIUS","IM2NP - UMR 7334 - MNO"]
["202 - 18","IM2NP - UMR 7334 - LUMEN - PV","LUMEN - PV","Mr Judikaël Le Rouzo","IM2NP - UMR 7334 - LUMEN - PV"]
["202 - 19","IM2NP - UMR 7334 - IRM - PV","IRM - PV","Mr Olivier Palais","IM2NP - UMR 7334 - IRM - PV"]
["202 - 2","IM2NP - UMR 7334 MCA","MCA","Henri N'GUYEN","IM2NP - UMR 7334 MCA"]
["202 - 20","IM2NP - UMR 7334 - SPRINT","SPRINT","BENEVENT Evangeline","IM2NP - UMR 7334 - SPRINT"]
["202 - 21","IM2NP - UMR 7334 - DIRECTION","Direction","Zolika","IM2NP - UMR 7334 - DIRECTION"]
["202 - 22","IM2NP UMR 7334 - MQTM","MQTM","Roland Hayn et Pierre Lombardo","IM2NP UMR 7334 - MQTM"]
["202 - 23","IM2NP - UMR 7334 - IOLab","IOLab","Jean-Pierre WALDER","IM2NP - UMR 7334 - IOLab"]
["202 - 3","IM2NP - UMR 7334 NANO","NANO","Laurent NONY","IM2NP - UMR 7334 NANO"]
["202 - 4","IM2NP - UMR 7334 NOVA","NOVA","I. BERBEZIER - A. RONDA","IM2NP - UMR 7334 NOVA"]
["202 - 5","IM2NP - UMR 7334 RFID / CAPTEURS","RFID / CAPTEURS","PANNIER Philippe","IM2NP - UMR 7334 RFID / CAPTEURS"]
["202 - 6","IM2NP - UMR 7334 MEN","Centre d'expertise en thermochimie","G.MIkaelian- P. BENINI","IM2NP - UMR 7334 MEN"]
["202 - 7","IM2NP - UMR 7334 CONTRAINTE","CONTRAINTE","Olivier THOMAS","IM2NP - UMR 7334 CONTRAINTE"]
["202 - 8","IM2NP - UMR 7334 MAGNETISME","MAGNETISME","Sylvain BERTAINA","IM2NP - UMR 7334 MAGNETISME"]
["202 - 9","IM2NP - UMR 7334 TMS","TMS","Laurent RAYMOND","IM2NP - UMR 7334 TMS"]
["203 - 1","ICR  - UMR 7273 CROPS GIGMES","CROPS","Didier GIGMES","ICR  - UMR 7273 CROPS GIGMES"]
["203 - 10","ICR  - UMR 7273 CT Siri","AMIDEX","BARBATTI Mario","ICR  - UMR 7273 CT Siri"]
["203 - 11","ERC STRUCTURE",null,"Giulia MOLLICA","ERC STRUCTURE"]
["203 - 12","ICR  - UMR 7273 DUMUR","DUMUR","Frédéric DUMUR","ICR  - UMR 7273 DUMUR"]
["203 - 2","ICR  - UMR 7273 SMBSO Pietri","SMBSO","Sylvia PIETRI","ICR  - UMR 7273 SMBSO Pietri"]
["203 - 3"," ICR  - UMR 7273 CMO BESSON","CMO","Eric BESSON"," ICR  - UMR 7273 CMO BESSON"]
["203 - 4","ICR  - UMR 7273 CRAB AUDRAN","CRAB","Gérard AUDRAN","ICR  - UMR 7273 CRAB AUDRAN"]
["203 - 5","ICR  - UMR  7273 SREP OUARI","SREP","Olivier OUARI","ICR  - UMR  7273 SREP OUARI"]
["203 - 6","ICR  - UMR 7273 CT FERRE","CT","BARBATTI Mario","ICR  - UMR 7273 CT FERRE"]
["203 - 7"," ICR  - UMR 7273 SACS CHARLES","SACS","Laurence CHARLES"," ICR  - UMR 7273 SACS CHARLES"]
["203 - 8","ICR  - UMR 7273 PCR TERME","PCR","Thierry TERME","ICR  - UMR 7273 PCR TERME"]
["203 - 9","ICR  - UMR 7273 RPE Bernasconi","RPE","Bernasconi Patrick","ICR  - UMR 7273 RPE Bernasconi"]
["204 - 1","PIIM - UMR 7345 - CIML","CIML","Caroline Champenois","PIIM - UMR 7345 - CIML"]
["204 - 11","PIIM - UMR 7345 - ATELIER","Atelier PIIM","FAURE Jean-Bernard","PIIM - UMR 7345 - ATELIER"]
["204 - 2","PIIM - UMR 7345 - PATP","PATP","Mohammed Koubiti","PIIM - UMR 7345 - PATP"]
["204 - 3","PIIM - UMR 7345 - TP","TP","Alexandre Escarguel","PIIM - UMR 7345 - TP"]
["204 - 4","PIIM - UMR 7345 - PTM","PTM","Olivier Agullo","PIIM - UMR 7345 - PTM"]
["204 - 5","PIIM - UMR 7345 - ASTRO","ASTRO","Grégoire Danger","PIIM - UMR 7345 - ASTRO"]
["204 - 6","PIIM - UMR 7345 - H2M","H2M","Stephane Coussan","PIIM - UMR 7345 - H2M"]
["204 - 7","PIIM - UMR 7345",null,"Chiavassa","PIIM - UMR 7345"]
["204 - 8","PIIM - UMR 7345 - SDM","SDM","Christophe JOUVET","PIIM - UMR 7345 - SDM"]
["204 - 9","PIIM - UMR 7345 - PS","PS","THierry Angot","PIIM - UMR 7345 - PS"]
["205 - 1","IMBE - UMR 7263 OEB","EOB","Baumel BORCHIELLINI","IMBE - UMR 7263 OEB"]
["205 - 10","IMBE - UMR 7263 LICENCE ECOPE","licence ECOPE","Alain Thiery","IMBE - UMR 7263 LICENCE ECOPE"]
["205 - 11","IMBE-UMR 7263 SANTES","SANTES","Thierry ORSIERE et Pierre-Henri VILLARD","IMBE-UMR 7263 SANTES"]
["205 - 12","IMBE - UMR 7263 - ECOSOM","ECOSOM","Raphaël Gros et Véronique Masotti\n","IMBE - UMR 7263 - ECOSOM"]
["205 - 13","IMBE - UMR 7263 - PRNT","PRNT","David Bergé-Lefranc","IMBE - UMR 7263 - PRNT"]
["205 - 14","IMBE - UMR 7263","VEC projet CHOUFE","Evelyne Franquet / Anne-marie Farnet","IMBE - UMR 7263"]
["205 - 2","IMBE - UMR 7263 ECIB","ECIB","L. AFFRE - E.VIDAL","IMBE - UMR 7263 ECIB"]
["205 - 3","IMBE - UMR 7263 VEC","VEC","Evelyne FRANQUET","IMBE - UMR 7263 VEC"]
["205 - 4","IMBE - UMR 7263 SC ACE","SC ACE","Cagnacci Loris","IMBE - UMR 7263 SC ACE"]
["205 - 5","IMBE - UMR 7263 H&S","H&S","Thierry Orsieres","IMBE - UMR 7263 H&S"]
["205 - 6","IMBE - UMR 7263 EGE","Evolution Genome Environnement - EGE","GILLES André","IMBE - UMR 7263 EGE"]
["205 - 7","IRD IMBE ",null,null,"IRD IMBE "]
["205 - 8","IMBE - UMR 7263 SCLERO MORPHOLOGIE","Sclero Morphologie","ERESKOVSKY Alexander","IMBE - UMR 7263 SCLERO MORPHOLOGIE"]
["205 - 9","IMBE - UMR 7263 CHIPS",null,"Magalie claeys et  Girard Fabien","IMBE - UMR 7263 CHIPS"]
["206 - 1","INSTITUT FRESNEL- UMR 7249","CLARTE","G. RENVERSEZ - N. BONOD","INSTITUT FRESNEL- UMR 7249"]
["206 - 10","INSTITUT FRESNEL- UMR 7249","COMIX","Virginie CHAMARD","INSTITUT FRESNEL- UMR 7249"]
["206 - 11","INSTITUT FRESNEL- UMR 7249","Mécanique","Alain Busso","INSTITUT FRESNEL- UMR 7249"]
["206 - 12","INSTITUT FRESNEL- UMR 7249","Compte commun","Sophie Brasselet","INSTITUT FRESNEL- UMR 7249"]
["206 - 2","INSTITUT FRESNEL- UMR 7249","CONCEPT","Claude AMRA","INSTITUT FRESNEL- UMR 7249"]
["206 - 3","INSTITUT FRESNEL- UMR 7249","DYMABIO","Carole DEUMIE/Anabela Da Silva","INSTITUT FRESNEL- UMR 7249"]
["206 - 4","INSTITUT FRESNEL- UMR 7249","GSM","Salah BOURENANNE","INSTITUT FRESNEL- UMR 7249"]
["206 - 5","INSTITUT FRESNEL- UMR 7249","HIPE","Hervé TORTEL","INSTITUT FRESNEL- UMR 7249"]
["206 - 6","INSTITUT FRESNEL- UMR 7249","ILM","Jean Yves NATOLI","INSTITUT FRESNEL- UMR 7249"]
["206 - 7","INSTITUT FRESNEL- UMR 7249","MOSAIC","Hervé RIGNEAULT","INSTITUT FRESNEL- UMR 7249"]
["206 - 8","INSTITUT FRESNEL- UMR 7249","PHYTI","Nicolas BERTAUX","INSTITUT FRESNEL- UMR 7249"]
["206 - 9","INSTITUT FRESNEL- UMR 7249","RCMO","LUMEAU Julien ","INSTITUT FRESNEL- UMR 7249"]
["207 - 2","LAB. DE CHIMIE DE L'ENVIRONNEMENT (LCE) -  FRE 3416","TRAME","Jean Luc BOUDENNE","LAB. DE CHIMIE DE L'ENVIRONNEMENT (LCE) -  FRE 3416"]
["207 - 3","LAB. DE CHIMIE DE L'ENVIRONNEMENT (LCE) -  FRE 3416","MPO","Pierre DOUMENQ","LAB. DE CHIMIE DE L'ENVIRONNEMENT (LCE) -  FRE 3416"]
["208 - 1","INT","SPICCI","Nicolas Wanaverbecq","INT"]
["208 - 2","UNIS UMR U1072","YAHI","Nouara Yahi","UNIS UMR U1072"]
["208 - 3","LNC UMR 7291","BODI","Jean Denis TROADEC","LNC UMR 7291"]
["208 - 4","PPSN - EA 4674","Equipe commune TROADEC-TROUSLARD","Jean Denis TROADEC - Jérôme TROUSLARD","PPSN - EA 4674"]
["209 - 1","M2P2 - UMR  7340 FSC","FSC","Elisabeth BADENS","M2P2 - UMR  7340 FSC"]
["209 - 2","M2P2 - UMR 7340 TED","Traitement eau dechets","SORIC Audrey","M2P2 - UMR 7340 TED"]
["209 - 3","M2P2 - UMR 7340 EPM","EPM","Philippe MOULIN","M2P2 - UMR 7340 EPM"]
["209 - 4","M2P2 - UMR 7340 PROMETHEE","PROMETHEE","GUICHARDON Pierrette","M2P2 - UMR 7340 PROMETHEE"]
["209 - 5","M2P2 - UMR 7340 COMMUN (9800u130/arbois)","COMMUN","NISTERON Jean-paul ","M2P2 - UMR 7340 COMMUN (9800u130/arbois)"]
["210 - 1","NEUROSCIENCES INTEGRATIVES ET ADAPTATIVES - UMR 7260",null,"Christian XERRI","NEUROSCIENCES INTEGRATIVES ET ADAPTATIVES - UMR 7260"]
["211 - 1","TMCD2 - UMR MD1","E1","Anne DAVIN-REGLI","TMCD2 - UMR MD1"]
["211 - 2","UMR MCT","Membranes et Cibles Thérapeutiques","Jean-Michel BOLLA","UMR MCT"]
["212 - 1","CINAM - IMMF -","IMMF","Tommaso Nicolini","CINAM - IMMF -"]
["212 - 10","CINAM - IMMF - M. CAMPLO","SYMBA","Michel CAMPLO","CINAM - IMMF - M. CAMPLO"]
["212 - 11","CINAM - IMMF - C. MOUSTROU",null,"Corinne Moustrou","CINAM - IMMF - C. MOUSTROU"]
["212 - 12","CINAM - IMMF - J.M. RAIMUNDO","SMS","Jean-Manuel Raimundo","CINAM - IMMF - J.M. RAIMUNDO"]
["212 - 13","CINAM - UMR 7325","Service Physico-Chimie","Frédéric BRUNEL","CINAM - UMR 7325"]
["212 - 14","CINAM - IMMF - A. TINTARU",null,"A. TINTARU","CINAM - IMMF - A. TINTARU"]
["212 - 2","CINAM - IMMF - L. PENG","B&B","Ling Peng","CINAM - IMMF - L. PENG"]
["212 - 3","CINAM - UMR 7325 - STNO","STNO","R. Morin","CINAM - UMR 7325 - STNO"]
["212 - 4","CINAM - NM - NANOMATERIAUX ","Nanomatériaux","Lionel SANTINACCI","CINAM - NM - NANOMATERIAUX "]
["212 - 5","CINAM - IMMF - O. SIRI","CHROMA","Olivier Siri","CINAM - IMMF - O. SIRI"]
["212 - 6","AMIDEX CINAM","TASC"," Frédéric FAGES","AMIDEX CINAM"]
["212 - 7","CINAM - IMMF - M.GINGRAS","SHB","Marc GINGRAS","CINAM - IMMF - M.GINGRAS"]
["212 - 8","CINAM - IMMF - F. FAGES",null,"Frédéric Fages","CINAM - IMMF - F. FAGES"]
["212 - 9","CINAM - IMMF - C. VIDELOT-ACKERMANN","FUN","Christine Videlot- Ackermann","CINAM - IMMF - C. VIDELOT-ACKERMANN"]
["213 - 1","FEDERATION DE RECHERCHE 3C - FR 3512","Animalerie","Valérie GILBERT","FEDERATION DE RECHERCHE 3C - FR 3512"]
["213 - 2","FEDERATION DE RECHERCHE 3C - FR 3512","IRM - Petit animal","Nathalie BARIL","FEDERATION DE RECHERCHE 3C - FR 3512"]
["213 - 3","FEDERATION DE RECHERCHE 3C - FR 3512","Histologie","Christine MANRIQUE","FEDERATION DE RECHERCHE 3C - FR 3512"]
["213 - 4","FEDERATION DE RECHERCHE 3C - FR 3512","Micro-dialyse","Nathalie LORENZO","FEDERATION DE RECHERCHE 3C - FR 3512"]
["214 - 1","CENTRALE MEDITERRANEE","TP CHIMIE","Arnaud TREUVEY","CENTRALE MEDITERRANEE"]
["214 - 2","CENTRALE MEDITERRANEE","SEMESTRE 8","Arnaud TREUVEY","CENTRALE MEDITERRANEE"]
["214 - 3","CENTRALE MEDITERRANEE","MGP ","Mireille ARGEME","CENTRALE MEDITERRANEE"]
["215 - 1","IUT DE MARSEILLE ","DEPARTEMENT DE CHIMIE","LAVAUZELLE Loïc","IUT DE MARSEILLE "]
["215 - 2","IUT DE MARSEILLE ","GCGP","Christelle CRAMPON","IUT DE MARSEILLE "]
["215 - 3","IUT DE MARSEILLE ","DEPT GTE","FERRATO Hervé","IUT DE MARSEILLE "]
["215 - 4","IUT DE MARSEILLE ","DEPT Mesures Physiques","Mme Escoubas Stephanie","IUT DE MARSEILLE "]
["215 - 5","IUT d'AIX EN PROVENCE","Département GMP","Jean-François CHAIX (Chef de Département)","IUT d'AIX EN PROVENCE"]
["215 - 6","IUT DE MARSEILLE ","DEPT GEII","Arnaud DURAND","IUT DE MARSEILLE "]
["215 - 7","IUT DE MARSEILLE ","DPT CHIMIE","Nicolas MARTIN","IUT DE MARSEILLE "]
["216 - 1","DPT PHYSIQUE - FILIERE INSTRUMENTATION","FILIÈRE INSTRUMENTATION","Michel CARETTE","DPT PHYSIQUE - FILIERE INSTRUMENTATION"]
["216 - 2","DPT PHYSIQUE - PHYSIQUE EXPERIMENTALE","Service Physique Expérimentale","Jean-Marc THEMLIN","DPT PHYSIQUE - PHYSIQUE EXPERIMENTALE"]
["217 - 1","DEPARTEMENT DE CHIMIE","DEPARTEMENT DE CHIMIE","Commeiras","DEPARTEMENT DE CHIMIE"]
["218 - 1","DÉPARTEMENT DE BIOLOGIE - UFR SCIENCES ","LICENCE BIOLOGIE","MARESCA / RAMI","DÉPARTEMENT DE BIOLOGIE - UFR SCIENCES "]
["218 - 2","DÉPARTEMENT DE BIOLOGIE - UFR SCIENCES ","LICENCE PRO SCIENCES SANITAIRE ET SOCIALE","Nathalie QUINSON","DÉPARTEMENT DE BIOLOGIE - UFR SCIENCES "]
["218 - 3","DÉPARTEMENT DE BIOLOGIE - UFR SCIENCES ","LICENCE PRO DELEGUE MEDICAL","BOUVIER Michel","DÉPARTEMENT DE BIOLOGIE - UFR SCIENCES "]
["218 - 4","DÉPARTEMENT DE BIOLOGIE - UFR SCIENCES ","MASTER NEUROSCIENCES","TROADEC - VIDAL","DÉPARTEMENT DE BIOLOGIE - UFR SCIENCES "]
["218 - 5","DÉPARTEMENT DE BIOLOGIE - UFR SCIENCES ","MASTER QUALITE ET SECURITE ALIMENTAIRE","VALERIE DEYRIS","DÉPARTEMENT DE BIOLOGIE - UFR SCIENCES "]
["218 - 6","DÉPARTEMENT DE BIOLOGIE - UFR SCIENCES ","MASTER AGROSCIENCES SPECIALITE PCA","Valérie DEYRIS","DÉPARTEMENT DE BIOLOGIE - UFR SCIENCES "]
["219 - 1","LISA - EA 4672","IPCN","Yves ZEREGA","LISA - EA 4672"]
["219 - 2","IMBE - UMR 7263","équipe biotechnologie et chimiometrie","Nathalie DUPUY","IMBE - UMR 7263"]
["220 - 1","MADIREL - UMR 7246 - S2G","ENAP","Sandrine BOURRELLY","MADIREL - UMR 7246 - S2G"]
["220 - 2","MADIREL - UMR 7246 - INPACT","INPACT","ANTONI Mickaël","MADIREL - UMR 7246 - INPACT"]
["220 - 3","MADIREL - UMR 7246 - SG","SG","ANTONI Mickaël","MADIREL - UMR 7246 - SG"]
["220 - 4","MADIREL - UMR 7246 - ELMA","ELMA","Florence VACANDIO","MADIREL - UMR 7246 - ELMA"]
["220 - 5","MADIREL - UMR 7246","DETEC","YVES ZEREGA","MADIREL - UMR 7246"]
["220 - 6","MADIREL - UMR 7246","MACLE","Chrystelle LEBOUIN","MADIREL - UMR 7246"]
["221 - 1","DIRECTION DE LA VALORISATION ET DE LA RECHERCHE","Cellule de Culture Scientifique et Technique","GALVEZ Isabelle","DIRECTION DE LA VALORISATION ET DE LA RECHERCHE"]
["222 - 1","Ecole Supérieure du Professorat et de l'Education - ESPE",null,"Marlène ASTRION","Ecole Supérieure du Professorat et de l'Education - ESPE"]
["223 - 1","ADER Méditerranée",null,"MICHIEL Pierre","ADER Méditerranée"]
["224 - 1","Laboratoire de Pétrologie Magmatique",null,"LONGEREY Julien","Laboratoire de Pétrologie Magmatique"]
["225 - 1","IUSTI ",null,"POULIQUEN Olivier","IUSTI "]
["225 - 2","IUSTI ","DYNAMIQUE DES FEUX","PORTERIE Bernard","IUSTI "]
["225 - 3","IUSTI","Milieux Divisés et Fluides Complexes (Axe MDFC)","Joel MARTHELOT","IUSTI"]
["225 - 4","IUSTI",null,"GARDAREIN Jean-Laurent","IUSTI"]
["226 - 1","CRN2M - UMR 7286",null,"ENJALBERT Alain","CRN2M - UMR 7286"]
["227 - 1","IRPHE - UMR 7342","FRAGMENTATION, MÉLANGE et COMBUSTION","Villermaux Emmanuel","IRPHE - UMR 7342"]
["227 - 2","IRPHE - UMR 7342","Écoulement tournant","LE BARS Michael","IRPHE - UMR 7342"]
["227 - 3","IRPHE - UMR 7342","Equipe LEONETTI","LEONETTI Marc","IRPHE - UMR 7342"]
["227 - 4","IRPHE - UMR 7342","Matière molle et biophysique ","Julien Deschamps","IRPHE - UMR 7342"]
["227 - 5","IRPHE - UMR 7342","Service ingénierie","Florian BRUNIER-COULIN","IRPHE - UMR 7342"]
["229 - 1","MASTER SET",null,"DOUMENQ Pierre ","MASTER SET"]
["230 - 1","SERVICE D'OPTIQUE PHYSIOLOGIQUE",null,"GUICHET Christophe\n","SERVICE D'OPTIQUE PHYSIOLOGIQUE"]
["231 - 1","CEREGE UMR 7330 GEO CHIMIE","GEOCHIMIE ET GEOCHRONOLOGIE EQ5","BARD Edouard","CEREGE UMR 7330 GEO CHIMIE"]
["231 - 2","CEREGE UMR 7330 - ENVIRONNEMENT DURABLE","Environnement Durable","MASION Armand","CEREGE UMR 7330 - ENVIRONNEMENT DURABLE"]
["231 - 3","CEREGE - CNRS UMR 7330 - PHY et STRUC","PHYSIQUE ET STRUCTURE","DEVOUARD B.","CEREGE - CNRS UMR 7330 - PHY et STRUC"]
["231 - 4","CEREGE - UMR 7330","Bio-Indic  traceurs","Florence Sylvestre","CEREGE - UMR 7330"]
["231 - 5","CEREGE ","CLIMAT",null,"CEREGE "]
["232 - 1","LAMPEA - UMR7269",null,null,"LAMPEA - UMR7269"]
["233 - 1","IMBE","SCECM","Caroline Lecareux","IMBE"]
["234 - 1","AFMB",null,"Karine Alvarez","AFMB"]
["235 - 1","CRCM - ISCB Integrative Structural & Chemical Biology",null,"Sébastien COMBES","CRCM - ISCB Integrative Structural & Chemical Biology"]
["236 - 1","IUT DE MARSEILLE ",null,"mafffei michel","IUT DE MARSEILLE "]
["237 - 1","UMR ISCR 6226 - Rennes","PNSCM","Mickael JEAN","UMR ISCR 6226 - Rennes"]
["237 - 2","ENSCR - RENNES",null,null,"ENSCR - RENNES"]
["238 - 1","ESPE",null,"RANUCCI Jean Francis","ESPE"]
["238 - 2","LICENCE SCIENCES DE LA VIE ET DE LA TERRE","TP BIOCHIMIE","VANDAMME Didier","LICENCE SCIENCES DE LA VIE ET DE LA TERRE"]
["239 - 1","BRUKER","spectopole","Rosas","BRUKER"]
["240 - 1","Laboratoire BIP - UMR 7281",null,"GIUDICI-ORTICONI Marie-Thérèse","Laboratoire BIP - UMR 7281"]
["240 - 2","BIP UMR7281","BIP07","GUIGLIARELLI Bruno","BIP UMR7281"]
["240 - 3","BIP - UMR 7281","BIP 02","Brigitte GONTERO","BIP - UMR 7281"]
["241 - 1","POLYTECH ","DEPARTEMENT MATERIAUX ","GIORGIO Suzanne","POLYTECH "]
["241 - 2","POLYTECH ","Dpt Genie Biomedical","Regis RIEU","POLYTECH "]
["242 - 1","monastir","laboratoire de physico-chimie","Pr. Habib Nasri","monastir"]
["243 - 1","ETAC USR3388",null,null,"ETAC USR3388"]
["244 - 1","ECOLE DES MINES ","CTP","HOURIEZ Céline","ECOLE DES MINES "]
["244 - 2","MINES PARIS - PSL",null,null,"MINES PARIS - PSL"]
["245 - 1","IBDM - UMR7288 - EQUIPE LECUIT","ORGANISATION ET DYNAMIQUE DES FORMES BIOLOGIQUES","Thomas LECUIT","IBDM - UMR7288 - EQUIPE LECUIT"]
["246 - 1","INSPE",null,"Caroline GAREAU","INSPE"]
["247 - 1","UMR RECOVER",null,null,"UMR RECOVER"]
["248 - 1","CERIMED - Dpt Médicaments et Sécurité Sanitaire","Secteur Radiopharmaceutique","Benjamin GUILLET","CERIMED - Dpt Médicaments et Sécurité Sanitaire"]
["249 - 1","LMA - LABORATOIRE DE MECANIQUE ET D'ACOUSTIQUE",null,null,"LMA - LABORATOIRE DE MECANIQUE ET D'ACOUSTIQUE"]
["300 - 1","VANALYSE",null,"Sophie CHARVET","VANALYSE"]
["301 - 1","LABORATOIRE DE PHARMACIE GALENIQUE\n\n",null,"PHILIPPE PICCERELLE\n","LABORATOIRE DE PHARMACIE GALENIQUE\n\n"]
["302 - 1","BIOMEOSTASIS",null,"BARIOHAY Bruno","BIOMEOSTASIS"]
["303 - 1","IPGP","ISOTOPES STABLES",null,"IPGP"]
["304 - 1","CRHEA","NANO",null,"CRHEA"]
["305 - 1","ITES","TREMA",null,"ITES"]
["306 - 1","LPHT - IUT DE MULHOUSE ","PPMR","TUILIER Marie Hélène","LPHT - IUT DE MULHOUSE "]
["307 - 1","LSPM","PEMA","BRINZA Ovidiu","LSPM"]
["308 - 1","INSTITUT JEAN LAMOUR - UMR 7198 CNRS","UNIVERSITÉ DE LORRAINE",null,"INSTITUT JEAN LAMOUR - UMR 7198 CNRS"]
["309 - 1","SAINT GOBAIN","SUI","MONTIGAUD Hervé","SAINT GOBAIN"]
["310 - 1","CEA MARCOULE","DTCD/SECM/LMPA","GUTIERREZ Gaëlle","CEA MARCOULE"]
["310 - 2","CEA MARCOULE","UG/SFCG/BGFU","Anne-Marie GUIGUE","CEA MARCOULE"]
["310 - 3","CEA MARCOULE"," DES/ISEC/DPME/SEME/LEMC","Isabelle BISEL","CEA MARCOULE"]
["310 - 4","CEA MARCOULE","Institut de Chimie Séparative de Marcoule","Xavier DESCHANELS","CEA MARCOULE"]
["311 - 1","GAMBRO RENAL PRODUCTS",null,null,"GAMBRO RENAL PRODUCTS"]
["312 - 1","EA 7502 SIMBA - TOURS","SIMBA","Jérôme THIBONNET","EA 7502 SIMBA - TOURS"]
["312 - 2","EA 6299 PCM2E - TOURS","PCM2E","Carine MOUCHAHAM","EA 6299 PCM2E - TOURS"]
["313 - 1","UMR 7272 ICN Nice","Equipe APSM Arômes Parfums Synthèse et Modélisation","Véronique MICHELET","UMR 7272 ICN Nice"]
["314 - 1","MREI Dunkerque","Equipe Océanographie physique, transport et télédétection","Hubert Loisel","MREI Dunkerque"]
["315 - 1","SQPOV Avignon","SQPOV","Dangles Olivier","SQPOV Avignon"]
["315 - 2","UMR408 INRA-UAPV","GREEN","Anne-Sylvie FABIANO-TIXIER","UMR408 INRA-UAPV"]
["316 - 1","INRA Avignon","INRAAV","CARIS-VEYRAT Catherine","INRA Avignon"]
["317 - 1","Université de la Polynésie Française","Tahiti","RAHARIVELOMANANA Phila","Université de la Polynésie Française"]
["318 - 1","Université Catholique de Louvain","BSMA","Mme Christine DUPONT","Université Catholique de Louvain"]
["319 - 1","PROVEPHARM LIFE SOLUTIONS","PROVEPHARM LIFE SOLUTIONS","Babak SAYAH","PROVEPHARM LIFE SOLUTIONS"]
["320 - 1","C2S : Courtage Chimie Service","C2S : Courtage Chimie Service","Sylvain Marceix","C2S : Courtage Chimie Service"]
["321 - 1","Catalyse","Catalyse","Pierre Ganet","Catalyse"]
["322 - 1","BASIC","BASIC","Claude ARZOUYAN","BASIC"]
["323 - 1","kupol-pharma","kupol-pharma","Jean-Pierre Robin","kupol-pharma"]
["324 - 1","CISBIO Bioassays","CISBIO Bioassays",null,"CISBIO Bioassays"]
["325 - 1","CARLO ERBA-SDS","CARLO ERBA-SDS","Patrick Guerard","CARLO ERBA-SDS"]
["326 - 1","Laboratoires Brothier SAS","Laboratoires Brothier SAS","Stéphane Lack","Laboratoires Brothier SAS"]
["327 - 1","Ineos","Innovene Ineos","VALLERICH JUDITH","Ineos"]
["328 - 1","SAI Chimie","SAI Chimie","Martine ROMETTE","SAI Chimie"]
["329 - 1","Eurofins Analytics France","Eurofins Analytics France",null,"Eurofins Analytics France"]
["330 - 1","Eurofins Cervac Sud","Eurofins Cervac Sud","Rose-Marie DENY","Eurofins Cervac Sud"]
["330 - 2","EUROFINS 3 OHMS","3 ohms","Bruno DULISCOUET","EUROFINS 3 OHMS"]
["330 - 3","EUROFINS AGRO-ANALYSES (WOIPPY)",null,null,"EUROFINS AGRO-ANALYSES (WOIPPY)"]
["331 - 1","NON pgc FOOD Consulting","NON pgc FOOD Consulting","V. MIDENA","NON pgc FOOD Consulting"]
["332 - 1","Fontarome","Fontarome","demander P Coulon","Fontarome"]
["333 - 1","HUTCHINSON R&D","HUTCHINSON R&D","Brice GABRIELLE","HUTCHINSON R&D"]
["334 - 1","BD-Medical","BD-Medical","Jean-Bernard Hamel","BD-Medical"]
["335 - 1","GALDERMA Sophia-Antipolis","GALDERMA Sophia-Antipolis","Stéphane CANE","GALDERMA Sophia-Antipolis"]
["336 - 1","Madagascar Université d'Antsiranana","Madagascar Université d'Antsiranana",null,"Madagascar Université d'Antsiranana"]
["337 - 1","ARCANE Industries - Aubagne","ARCANE Industries - Aubagne",null,"ARCANE Industries - Aubagne"]
["338 - 1","ENC-Montpellier-MACS","ENC-Montpellier-MACS","Basset","ENC-Montpellier-MACS"]
["338 - 2","CHIMECO/CNRS",null,null,"CHIMECO/CNRS"]
["339 - 1","Université Laval Quebec","Université Laval Quebec","Nathalie Carisey","Université Laval Quebec"]
["340 - 1","ISEA NOUMEA NC","ISEA","Nicolas LEBOUVIER","ISEA NOUMEA NC"]
["341 - 1","LMTG - UMR 5563","GET","Michel GREGOIRE","LMTG - UMR 5563"]
["342 - 1","AMIDEX-ISM2","AMIDEX-ISM2",null,"AMIDEX-ISM2"]
["343 - 1","synthron","synthron","MARTIN Cédric","synthron"]
["344 - 1","TOTAL SOLAIZE","Total Marketing Services",null,"TOTAL SOLAIZE"]
["344 - 2","TOTAL RAFFINAGE MARKETING","Gestion Laurence","Laurence Charles","TOTAL RAFFINAGE MARKETING"]
["345 - 1","polymex",null,"Panaiva Lionel","polymex"]
["346 - 1","CHR Hansen","pigment group","Mané Carine","CHR Hansen"]
["347 - 1","BIOCIS - Paris Sud","BioCIS","JOSEPH Delphine","BIOCIS - Paris Sud"]
["348 - 1","MANE",null,"Jaunky Piotr","MANE"]
["349 - 1","UPMC -SAIC","ARAGO SUZUKI","Suzuki","UPMC -SAIC"]
["350 - 1","NATUREX","naturex","tenon","NATUREX"]
["351 - 1","Université JILEL - Algérie",null,"BELFERDI FATIHA","Université JILEL - Algérie"]
["352 - 1","UNIVERSITE NICE UMR 7336","Matériaux et Polymères Eco-compatibles","Nicolas Sbirrazzuoli","UNIVERSITE NICE UMR 7336"]
["352 - 2","UNIVERSITE DE NICE  UMR 7272","Institut de chimie de Nice","Rachid BENHIDA","UNIVERSITE DE NICE  UMR 7272"]
["352 - 3","UNIVERSITE COTE D'AZUR - IBV","Institut de Biologie Valrose",null,"UNIVERSITE COTE D'AZUR - IBV"]
["353 - 1","UMR 7590 Museum Histoire naturelle","Institut de Minéralogie, de Physique des Matériaux et de Cosmochimie","Sylvain Bernard","UMR 7590 Museum Histoire naturelle"]
["354 - 1","CRCM UMR 1068 INSERM UMR 7258 CNRS",null,"Xavier Morelli","CRCM UMR 1068 INSERM UMR 7258 CNRS"]
["355 - 1","Expanscience",null,null,"Expanscience"]
["356 - 1","Institut Agronomique Calédonien",null,null,"Institut Agronomique Calédonien"]
["356 - 2","IFREMER - NOUVELLE CALEDONIE","LEAD - LAGONS, ECOSYSTEMES ET AQUACULTURE DURABLE","Thierry JAUFFRAIS","IFREMER - NOUVELLE CALEDONIE"]
["357 - 1","PRASEO",null,null,"PRASEO"]
["358 - 1","CERMAV","UPR CNRS5301","éric reynaud","CERMAV"]
["359 - 1","Avignon-Chimie Antioxidant",null,null,"Avignon-Chimie Antioxidant"]
["360 - 1","CEA Marcoule DRCP/SMCS/LCPE","fabio",null,"CEA Marcoule DRCP/SMCS/LCPE"]
["361 - 1","Laboratoire de Chimie Inorganique et Environnement",null,"Leila Boukli-hacene Benmenni","Laboratoire de Chimie Inorganique et Environnement"]
["362 - 1","Université Ferhat Abbas Sétif Algérie","laboratoire des Matériaux Polymériques Multiphasiques,","Kerouani Samira","Université Ferhat Abbas Sétif Algérie"]
["363 - 1","ChemBioPro","ChemBioPro","Anne Bialecki","ChemBioPro"]
["364 - 1","PCM2E Tours","PCM2E","Tran Van ","PCM2E Tours"]
["365 - 1","INNATE PHARMA",null,null,"INNATE PHARMA"]
["366 - 1","INSTITUT SERVIER","Jean-Valère NAUBRON","Jean-Valère NAUBRON","INSTITUT SERVIER"]
["367 - 1","MAPIEM Univ Toulon","Ecole SEATECH","Jean-François CHAILAN","MAPIEM Univ Toulon"]
["367 - 2","PROTEE - UNIV TOULON","IM2NP - NS2E","Yves LUCAS","PROTEE - UNIV TOULON"]
["368 - 1","Laboratoire THEA",null,"Merlier","Laboratoire THEA"]
["369 - 1","vicat",null,"OLIVIER MARTINAGE","vicat"]
["370 - 1","LNIA","Traitement sensoriel et neuroplasticité","CHABBERT","LNIA"]
["370 - 2","LNIA","NORENA Arnaud","Arnaud NORENA","LNIA"]
["371 - 1","INSTITUT NEUROSCIENCES DE LA TIMONE","PIICI","Isabelle PELLEGRIN","INSTITUT NEUROSCIENCES DE LA TIMONE"]
["372 - 1","UMR QUALITROP Univ Antilles","UMR QUALITROP","Sylvie BERCION","UMR QUALITROP Univ Antilles"]
["372 - 2","VCPME - GUADELOUPE",null,"Sylvie BERCION","VCPME - GUADELOUPE"]
["373 - 1","BECKMAN-IMMUNOTECH",null,null,"BECKMAN-IMMUNOTECH"]
["375 - 1","TELENE SAS",null,"Aymeric Lepronier","TELENE SAS"]
["376 - 1","Anta Diop - SENEGAL","Chimie Minerale Analytique","Bougar SARR","Anta Diop - SENEGAL"]
["377 - 1","TUNISIE REGUEB",null,"DHIFI Marwa","TUNISIE REGUEB"]
["378 - 1","INPS",null,"DOMINIQUE AMATO","INPS"]
["379 - 1","LABORATOIRE SIGNATURES",null,"FREDERIC POITOU","LABORATOIRE SIGNATURES"]
["380 - 1","DRV AMU","DRV","Alix Thuillier","DRV AMU"]
["381 - 1","PHDS-SOURCING",null,null,"PHDS-SOURCING"]
["382 - 1","URMITE - UMR 6236",null,"Eric CHABRIERE","URMITE - UMR 6236"]
["383 - 1","Enseignement TP L3",null,"Mehdi Yemloul","Enseignement TP L3"]
["384 - 1","Monastir AJMI",null,"Jihen AJMI","Monastir AJMI"]
["385 - 1","SINOPIA",null,"AZE","SINOPIA"]
["386 - 1","HSE - DHSE Campus Timone","Christophe OUDELIN","OUDELIN christophe","HSE - DHSE Campus Timone"]
["387 - 1","ENS LYON - UMR 5182 - LCH",null,"CHANTAL ANDRAUS","ENS LYON - UMR 5182 - LCH"]
["387 - 2","ENS PARIS SACLAY",null,null,"ENS PARIS SACLAY"]
["388 - 1","CEA CADARACHE","DEN/DEC/SA3E/LCPC","claire ONOFRI","CEA CADARACHE"]
["388 - 2","CEA CADARACHE","DEN/CAD/DEC/SA3C/LEMCI","Laurent FAYETTE","CEA CADARACHE"]
["388 - 3","CEA CADARACHE","DEC/SA3C/LAMIR","AUDUBERT","CEA CADARACHE"]
["388 - 4","CEA CADARACHE","DEN/DEC/SFER/LCU","Olivier FIQUET","CEA CADARACHE"]
["388 - 5","CEA CADARACHE","DSM/IRFM/SIPP/GCFPM",null,"CEA CADARACHE"]
["388 - 6","CEA CADARACHE","BIAM CNRS","Damien FAIVRE","CEA CADARACHE"]
["389 - 1","UMR 5257 INSTITUT DE CHIMIE SEPARTIVE DE MARCOULE",null,null,"UMR 5257 INSTITUT DE CHIMIE SEPARTIVE DE MARCOULE"]
["390 - 1","CICRP",null,"BOUILLON","CICRP"]
["391 - 1","ANALOOE",null,"Frédérique VOUVE","ANALOOE"]
["392 - 1","IRSN","L2EC","COLOMBANI","IRSN"]
["393 - 1"," INT UMR 7289 - mirCOS","mirCOS","Elodie CACCOMO-GARCIA"," INT UMR 7289 - mirCOS"]
["393 - 2"," INT UMR 7289 - SoniC","SoniC","Natalia Popa"," INT UMR 7289 - SoniC"]
["394 - 1","Clement LEVARD","INTERFAST"," Mélanie Auffan","Clement LEVARD"]
["395 - 1","LNC UMR 7291","Equipe commune","Thierry HASBROUCQ ","LNC UMR 7291"]
["395 - 10","LNC UMR 7291","MOTIVATION","Frédéric AMBROGGI","LNC UMR 7291"]
["395 - 2","LNC UMR 7291","BODI","Jean Denis TROADEC","LNC UMR 7291"]
["395 - 3","LNC UMR 7291","SOMATOSENS","Patrick DELMAS","LNC UMR 7291"]
["395 - 4","LNC UMR 7291","BASALGANG","Abdel OUAGAZZAL","LNC UMR 7291"]
["395 - 5","LNC UMR 7291","MULAW","Marieke LONGCAMP","LNC UMR 7291"]
["395 - 6","LNC UMR 7291","ACDC","Boris BURLE","LNC UMR 7291"]
["395 - 7","LNC UMR 7291","NEURODEV","Christine ASSAIANTE","LNC UMR 7291"]
["395 - 8","LNC UMR 7291","SPACE","Francesca SARGOLINI","LNC UMR 7291"]
["395 - 9","LNC UMR 7291","SENSORIMOT","Jean BLOUIN","LNC UMR 7291"]
["396 - 1","resoltech",null,"Lionel Bosco","resoltech"]
["397 - 1","ISTerre",null,"Roland HELLMANN","ISTerre"]
["397 - 2","ISTerre","Géochimie","Stéphane GUEDRON","ISTerre"]
["398 - 1","UFR Sciences Licence aménagement Paysager",null,"SANDOZ","UFR Sciences Licence aménagement Paysager"]
["399 - 1","Bouallegui Thamer",null,"Thamer BOUALLEGUI","Bouallegui Thamer"]
["400 - 1","COSMO International Ingredients",null,"Leslie DUROURE","COSMO International Ingredients"]
["401 - 1","UFR Science Service Maintenance","Service Maintenance","GUERRERO Michel","UFR Science Service Maintenance"]
["402 - 1","MATTOUG","M. MOKHNACHE",null,"MATTOUG"]
["403 - 1","SIAMED'XPRESS",null,null,"SIAMED'XPRESS"]
["404 - 1","TESCAN Analytics",null,"M. DE PUYDT","TESCAN Analytics"]
["405 - 1","LCTS","LABORATOIRE DES COMPOSITES THERMOSTRUCTURAUX","D DAMIANI","LCTS"]
["405 - 2","ICMCB",null,null,"ICMCB"]
["406 - 1","UMR7200 - LIT","CBI",null,"UMR7200 - LIT"]
["407 - 1","ICMPE UMR 7182","CMTR","Jean-Marc JOUBERT","ICMPE UMR 7182"]
["408 - 1","UNIVERSITE LARBI BEN M'HIDI",null,null,"UNIVERSITE LARBI BEN M'HIDI"]
["408 - 2","UNIVERSITE D'ORAN 1 AHMED BEN BALLA","LCPM",null,"UNIVERSITE D'ORAN 1 AHMED BEN BALLA"]
["408 - 3","LSPBE",null,"DAAOU Mortada","LSPBE"]
["409 - 1","CALYTHERM",null,"Fabienne LACOULONCHE","CALYTHERM"]
["411 - 1","ISL ",null,"Elodie BARAUD","ISL "]
["412 - 1","DATACHIM",null,"André MAISONNEUVE","DATACHIM"]
["413 - 1","PFW","aroma chemicals division"," Wojciech Dzik ","PFW"]
["414 - 1","AZUR ISOTOPES","AZUR ISOTOPES","Anh Tuan LORMIER","AZUR ISOTOPES"]
["415 - 1","CYROI","BIO'R","Laura LALLEMAND","CYROI"]
["416 - 1","LAAS",null,"Chantal FONTAINE","LAAS"]
["417 - 1","CEA SACLAY","DEN/DANS/DMN/SRMP Laboratoire JANNuS","Gaëlle Gutierrez","CEA SACLAY"]
["418 - 1","CEREXAGRI",null,null,"CEREXAGRI"]
["419 - 1","CNRS -IPCMS","IPCMS","M. OVIDIU ERSEN","CNRS -IPCMS"]
["419 - 2","FONDATION JEAN MARIE LEHN - CIRFC",null,null,"FONDATION JEAN MARIE LEHN - CIRFC"]
["420 - 1","GENOSCIENCE PHARMA",null,null,"GENOSCIENCE PHARMA"]
["421 - 1","IC2MP UMR 7285",null,null,"IC2MP UMR 7285"]
["422 - 1","LIFESCIENTIS",null,null,"LIFESCIENTIS"]
["423 - 1","KRONOS INTERNATIONAL",null,null,"KRONOS INTERNATIONAL"]
["423 - 2","NUVISAN",null,null,"NUVISAN"]
["424 - 1","SMARTOX SAS",null,null,"SMARTOX SAS"]
["425 - 1","NANOSIVE",null,null,"NANOSIVE"]
["425 - 2","SKINOSIVE",null,null,"SKINOSIVE"]
["426 - 1","IC2MP - POITIERS",null,"Yannick POUILLOUX","IC2MP - POITIERS"]
["426 - 2","IC2MP - POITIERS - GROUPE SUPERACIDES","SYNTHESE ORGANIQUE","Agnès MINGOT","IC2MP - POITIERS - GROUPE SUPERACIDES"]
["427 - 1","IPSOMEDIC SASU",null,null,"IPSOMEDIC SASU"]
["428 - 1","INP Institut de Neurophysiopathologie  UMR 7051",null,"Michel KHRESTCHATISKY","INP Institut de Neurophysiopathologie  UMR 7051"]
["429 - 1","IHU - MEPHI EQUIPE 2","MEPHI - Equipe 2","Eric CHABRIERE","IHU - MEPHI EQUIPE 2"]
["429 - 2","IHU - MEPHI EQUIPE 1","MEPHI - Equipe 1","Oleg MEDIANNIKOV","IHU - MEPHI EQUIPE 1"]
["429 - 3","IHU - MEDITERRANEE INFECTION",null,null,"IHU - MEDITERRANEE INFECTION"]
["430 - 1","YELEN",null,"Nicolas VIDAL","YELEN"]
["431 - 1","IMRA EUROPE",null,"Gerardo LARRAMONA","IMRA EUROPE"]
["432 - 1","NAOS",null,null,"NAOS"]
["433 - 1","UMR235-IRD / UMR7294-CNRS / AMU","IRD-MIO","Jean Lorquin","UMR235-IRD / UMR7294-CNRS / AMU"]
["434 - 1","SERMA Technologies",null,"Mme Béatrice Moreau","SERMA Technologies"]
["435 - 1","NAOS ILS",null,null,"NAOS ILS"]
["436 - 1","ARKEMA CERDATO",null,null,"ARKEMA CERDATO"]
["436 - 2","ARKEMA LACQ",null,null,"ARKEMA LACQ"]
["437 - 1","INSTITUT DE PHYSIQUE NICE",null,null,"INSTITUT DE PHYSIQUE NICE"]
["438 - 1","UMET Laboratoire ","Unité Matériaux et Transformations","Marie-Noëlle Avettand-Fénoël ","UMET Laboratoire "]
["439 - 1","HYSILABS",null,null,"HYSILABS"]
["440 - 1","AFINITICA TECHNOLOGIES",null,null,"AFINITICA TECHNOLOGIES"]
["441 - 1","MNHN - IMPMC UMR7590",null,"Laurent REMUSAT","MNHN - IMPMC UMR7590"]
["442 - 1","CEA GRENOBLE","IRIG/MEM/NRS",null,"CEA GRENOBLE"]
["442 - 2","CEA GRENOBLE","LITEN/DTNM",null,"CEA GRENOBLE"]
["443 - 1","INSERM - U1212 - UNIVERSITE DE BORDEAUX","U1212",null,"INSERM - U1212 - UNIVERSITE DE BORDEAUX"]
["444 - 1","MedILS",null,"PELLAY François-Xavier","MedILS"]
["445 - 1","INSTITUT CURIE - UMR 9187",null,null,"INSTITUT CURIE - UMR 9187"]
["445 - 2","INSTITUT CURIE RECHERCHE",null,null,"INSTITUT CURIE RECHERCHE"]
["446 - 1","SEDIFA LABORATOIRE",null,"Fabrice LORU","SEDIFA LABORATOIRE"]
["447 - 1","SCPML - SRED","SCPML","CATHY COXE","SCPML - SRED"]
["448 - 1","SIUMPPS"," Médecine Préventive des Étudiants","NUEL Claire resp. adm.","SIUMPPS"]
["449 - 1","Faculté des Sciences Médicales et Paramédicales"," Secrétariat Général","LEONETTI","Faculté des Sciences Médicales et Paramédicales"]
["450 - 1","INSTITUT EUROPEEN DES MEMBRANES","IEM","Yaovi HOLADE","INSTITUT EUROPEEN DES MEMBRANES"]
["451 - 1","LABORATOIRE LASERS PLASMAS ET PROCEDES PHOTONIQUES","LP3","Nicolas Sanner","LABORATOIRE LASERS PLASMAS ET PROCEDES PHOTONIQUES"]
["452 - 1","SAKOWIN SAS",null,null,"SAKOWIN SAS"]
["453 - 1","UNIVERSITE DE CORSE - PASCAL PAOLI","UMR SCIENCES POUR L'ENVIRONNEMENT",null,"UNIVERSITE DE CORSE - PASCAL PAOLI"]
["454 - 1","ENSAM","ENSAM Cluny","Corinne NOUVEAU","ENSAM"]
["455 - 1","BERTIN WINLIGHT",null,"Julien MARQUE","BERTIN WINLIGHT"]
["456 - 1","PESCHET Jean-Louis",null,null,"PESCHET Jean-Louis"]
["457 - 1","UMR 5244 IHPE","Team MIA","Chin-Long KY","UMR 5244 IHPE"]
["457 - 2","UMR 5247 - IBMM COUTROT D2","IBMM","Pascal DUMY","UMR 5247 - IBMM COUTROT D2"]
["458 - 1","SATT PACA Corse","Direction Administrative et financière","Régis GUIDA / François Atteia","SATT PACA Corse"]
["458 - 2","SATT OUEST VALORISATION",null,"Mathieu WEITTEN","SATT OUEST VALORISATION"]
["459 - 1","CENTRALE LILLE","UNITE DE CATALYSE ET DE CHIMIE DU SOLIDE",null,"CENTRALE LILLE"]
["460 - 1","Université de TOULON","IM2NP - bur.R-030",null,"Université de TOULON"]
["461 - 1","Framatome",null,"Gregory INACIO DA ROSA","Framatome"]
["462 - 1","SNF",null,null,"SNF"]
["463 - 1","LERM",null,null,"LERM"]
["464 - 1","ICGM, UMR5253",null,"Ahmad Mehdi","ICGM, UMR5253"]
["465 - 1","POLARIS",null,"Lionel LARVOL","POLARIS"]
["466 - 1","EURENCO FRANCE SAS",null,"Thibaud ALAIME","EURENCO FRANCE SAS"]
["467 - 1","CAILLAU",null,null,"CAILLAU"]
["468 - 1","AGEFPI",null,null,"AGEFPI"]
["469 - 1","FAIVELEYTECH",null,null,"FAIVELEYTECH"]
["470 - 1","AROMA SENSE",null,null,"AROMA SENSE"]
["471 - 1","GFBiochemicals",null,null,"GFBiochemicals"]
["472 - 1","Imerys",null,"Cédric Raboteau","Imerys"]
["472 - 2","Pellenc-Energy",null,"Lola LOUPIAS","Pellenc-Energy"]
["473 - 1","LAM Laboratoire d'astrophysique de Marseille ",null,"Marc Ferrari","LAM Laboratoire d'astrophysique de Marseille "]
["473 - 2","Nanoz","CEO","Thibaud SELLAM","Nanoz"]
["474 - 1","DEPARTEMENT MECANIQUE","MAINTENANCE","Noel Lahellec","DEPARTEMENT MECANIQUE"]
["475 - 1","PN ELECTRONICS",null,null,"PN ELECTRONICS"]

{"sheet":"PRODUITS","index":3,"n_rows":339,"n_cols":8,"rows_kept":339,"cut":false,"hidden":true,"merged":[]}
["Tab_Produits"]
["Numéro produit","Nom produit","Code produit","Qualité","Conditionnement vente","Mesure","Prix de vente avec remise","TexteNuméroProduit"]
[1,"MASQUE CHIRURGICAL","M","cat3/3 plis",50,"Unité",27.987100000000002,"1"]
[3,"NEUTRALISANT ACIDE LIQUIDE NEODISHER","N","Z",5,"L",53.226999999999997,"3"]
[4,"ETHYL ACETATE - 5L","N","RE",5,"L",11.2615,"4"]
[6,"ETHYL ACETATE - 1L","N","RPE ACS reagent",1,"L",5.9185999999999996,"6"]
[10,"ACETONE","N","99.5 %, laboratory reagent",5,"L",9.8979999999999997,"10"]
[13,"ACETONE TECHNIQUE - 5L","N","RE puro",5,"L",5.3833000000000002,"13"]
[16,"ACETONE - 1L","N","RPE-ACS-ISO pour anl",1,"L",4.7267999999999999,"16"]
[19,"ACETONITRILE - 1L","N","Pour analyses anhydres",1,"L",13.1401,"19"]
[21,"FLACONS SIROP 250 ML(27)","V","Verre blanc, PP 28",1,"Unités",0.80800000000000005,"21"]
[24,"ACIDE CHLORHYDRIQUE 37 %","N","fuming",1,"L",5.2317999999999998,"24"]
[25,"ACIDE CHLORHYDRIQUE 35 %","N",null,1,"L",5.2015000000000002,"25"]
[27,"CAPSULES EN BAKELITE","M","BG28 jointe TS",100,"Unité",10.504,"27"]
[30,"ACIDE FLUORHYDRIQUE 40 %","N","RP Normapur p.a.",1,"L",18.927399999999999,"30"]
[35,"BOBINE ESSUYAGE LISSE - GROS ROULEAU","M","Pure ouate, lisse, 24x30",1,"Unités",11.756399999999999,"35"]
[37,"ACIDE NITRIQUE 65 %","N","RP Normapur p.a.",1,"L",6.3933,"37"]
[39,"ACIDE ORTHOPHOSPHORIQUE 85 %","N","Extra-pur",1,"L",14.897500000000001,"39"]
[44,"ACIDE SULFURIQUE 95-97 %","N","GPR Rectapur",1,"L",7.1306000000000003,"44"]
[51,"ETHANOL 96° - 1L","N","RPE ACS pour analyse",1,"L",6.8578999999999999,"51"]
[52,"ETHANOL 96° - 5L","N","RE",5,"L",12.625,"52"]
[53,"ETHANOL ABSOLU - 5L","N","99.9 %, anhydre",5,"L",12.625,"53"]
[54,"ALCOOL ISOPROPYLIQUE (PROPANOL-2) - 1L","N","RPE ACS",1,"L",8.282,"54"]
[55,"ALCOOL ISOPROPYLIQUE (PROPANOL-2) - 5L","N","Pure pour synthèses",5,"L",18.18,"55"]
[56,"METHANOL - 5L","N","Laboratory Reagent, 99.6 %",5,"L",7.9992000000000001,"56"]
[57,"2-PROPANOL HPCL - 2.5L","N","HPLC",2.5,"L",18.836500000000001,"57"]
[64,"AMMONIAQUE 28 %","N","ERBApharm",1,"L",8.08,"64"]
[65,"AMMONIAQUE 30 %","N","RPE ACS pour analyse",1,"L",7.5952000000000002,"65"]
[67,"AMMONIUM CHLORURE - 5KG","N","Pour analyse",5,"KG",111.07980000000001,"67"]
[90,"CHLOROFORME - 1L","N","RS Spectrophotometri",1,"L",7.6658999999999997,"90"]
[91,"CHLOROFORME - 1L","N","Anhydre, pour analyse",1,"L",14.9177,"91"]
[94,"CYCLOHEXANE - 2.5L","N","RPE-ACS Reagent",2.5,"L",16.978100000000001,"94"]
[95,"CYCLOHEXANE - 1L","N","RPE ACS reagent II",1,"L",7.1204999999999998,"95"]
[96,"DICHLOROMETHANE - 5L","N","RE, stabilisé à l'éthanol",5,"L",27.209399999999999,"96"]
[98,"DICHLOROMETHANE - 1L","N","RPE ACS",1,"L",6.5246000000000004,"98"]
[104,"N,N-DIMETHYLFORMAMIDE - 1L","N","RE",1,"L",24.431899999999999,"104"]
[106,"ETHYLENE GLYCOL DIMETHYL ETHER - 1L","N","99 +%, extra pure, stabilized with BHT",1,"L",27.148800000000001,"106"]
[108,"DIMETHYLSULFOXYDE - 1L","N","RE",1,"L",20.2,"108"]
[114,"ETHER ETHYLIQUE - 2.5L","N","Purex pour analyses",2.5,"L",14.5541,"114"]
[115,"ETHER ETHYLIQUE - 1L","N","Purex pour analyses",1,"L",8.282,"115"]
[120,"ETHER DE PETROLE 40 - 60 °C - 1L","N","Pour analyses anhydres",1,"L",17.0185,"120"]
[121,"SODIUM CARBONATE ANHYDRE - 1KG","N","RPE ACS",1,"KG",13.887499999999999,"121"]
[125,"GLYCEROL - 1L","N","Rectapur",1,"L",8.08,"125"]
[126,"N-HEPTANE - 1L","N","RPE, 99.7 %",1,"L",7.0800999999999998,"126"]
[130,"N-HEXANE - 1L","N","RPE ACS pour analyse",1,"L",9.0799000000000003,"130"]
[132,"N-HEXANE - 1L","N","RS - Anhydre",1,"L",13.968299999999999,"132"]
[133,"HYDROGENE PEROXYDE 30 % (110V)","N","RP Normapur pour analyses.",1,"L",11.0494,"133"]
[147,"PENTANE - 2.5L","N","Purex pour analyses",2.5,"L",20.2,"147"]
[148,"N-PENTANE - 1L","N","RPE",1,"L",10.312099999999999,"148"]
[153,"SODIUM CHLORURE - 1KG","N","RP Normapur p.a.",1,"KG",4.9489999999999998,"153"]
[154,"SODIUM BICARBONATE - 1KG","N","certifié AR pour analyses",1,"KG",5.4035000000000002,"154"]
[165,"TETRAHYDROFURANNE - 5L","N","Pure pour synthèses",5,"L",26.068100000000001,"165"]
[166,"GRAISSES DOW CORNING","N","Pour vide normal (trop^me à eau), consictance oindrée, transparent, thermostable de -40 à +200 °C ",50,"GR",12.9381,"166"]
[167,"CAPSULES EN POLYPROPYLENE","M","BG18 jointe TS",100,"Unité",10.190899999999999,"167"]
[168,"TETRAHYDROFURANE - 1L","N","ReagentPlus®, 99.0 %, contains 250 ppm BHT as inhibitor",1,"L",8.6859999999999999,"168"]
[170,"TETRAHYDROFURANE - 1L","N","Anhydre, pour analyse",1,"L",35.0672,"170"]
[174,"TOLUENE - 1L","N","Anhydre, pour analyse",1,"L",13.291600000000001,"174"]
[178,"ISOOCTANE - 2.5L","N","RSE",2.5,"L",34.3703,"178"]
[179,"EAU HPLC - 2.5L","C","H.P.L.C.",2.5,"L",5.3933999999999997,"179"]
[189,"SODIUM HYDROGENOCARBONATE - 5KG","N","GPR Rectapur",5,"KG",24.846,"189"]
[194,"ACIDE ACETIQUE GLACIAL","N","RPE-ACS-pour analyse",1,"L",7.2618999999999998,"194"]
[199,"SPATULES EN ACIER INOXYDABLE","M","Type analyses, 230mm",1,"Unités",4.9893999999999998,"199"]
[201,"DIMETHYLSULFOXYDE - 1L","N","RPE-ACS-pour analyse",1,"L",10.433299999999999,"201"]
[204,"HUILE DE SILICONE POUR BAINS CHAUFFANTS","N","Rotitherm® M 220",1,"L",27.673999999999999,"204"]
[208,"GEL DE SILICE 60 POUR LA C.C - 2.5KG","C","230-400 mesh ASTM",2.5,"KG",41.288800000000002,"208"]
[211,"TOLUENE - 1L","N","Puriss. p.a., ACS reagent, reag. ISO, reag. Ph. Eur., 99.7 %",1,"L",7.5446999999999997,"211"]
[216,"CHLOROFORME - 2.5L","N","RPE, For analysis ISO-ACE-reagent",2.5,"L",13.5441,"216"]
[222,"GEL DE SILICE 60 F254 - 25 PLAQUES","C","Aluminium pour C.C.M",1,"Pack",45.954999999999998,"222"]
[223,"GEL DE SILICE 60 POUR LA C.C - 1KG","C","230-400 mesh ",1,"KG",19.977799999999998,"223"]
[226,"GEDURAN® SI 60 - 2.5KG","C","Pour la chromatographiesur colonne.(0.063-0.200 mm)",2.5,"KG",67.417500000000004,"226"]
[228,"SABLE DE MER PURIFIE - 1KG","C","0,1-0,3 mm",1,"KG",48.2376,"228"]
[231,"ETHER DE PETROLE 60-80°C - 1L","N","Purex pour analyses",1,"L",23.341100000000001,"231"]
[233,"METHANOL - 1L","N","Spectrosol",1,"L",7.5244999999999997,"233"]
[241,"CHLOROFORME D - 100ML","R","99.8 atom % D ",100,"ML",18.9375,"241"]
[242,"CHLOROFORME D - 25ML","R","99,80 %",25,"ML",11.120100000000001,"242"]
[249,"METHANOL D4 - 7.5ML","R","99,80 %",0.75,"ML",2.5653999999999999,"249"]
[252,"HUILE POUR POMPE A VIDE - 2L","N","ULTRAGRADE20",1,"Bidon",44.864199999999997,"252"]
[259,"FORMIC ACID - 1L","N","98 +%, pure",1,"L",9.4636999999999993,"259"]
[266,"DIMETHYL SULFOXIDE-D6 - 25GR","R","99,9 atom % D",25,"GR",68.447699999999998,"266"]
[276,"PROPANOL-1 - 1L","N","RE",1,"L",10.1,"276"]
[277,"CELITE 545 - 1KG","N","Silice diatomée",1,"KG",11.11,"277"]
[282,"METHANOL D4 - 25GR","R","99,8 atom % D",25,"GR",61.983699999999999,"282"]
[356,"N,N-DIMETHYLFORMAMIDE - 1L","N","RPE-ACS-pour analyse",1,"L",12.766400000000001,"356"]
[388,"ETHYL ACETATE - 2.5L","N","Analytical Reagent",2.5,"L",8.8172999999999995,"388"]
[389,"TOLUENE - 2.5L","N","Puriss. p.a., ACS reagent, reag. ISO, reag. Ph. Eur., 99.7 %",2.5,"L",13.655200000000001,"389"]
[495,"DICHLOROMETHANE - 2.5L","N","Puriss. p.a., ACS reagent, reag. ISO, 99.9 %",2.5,"L",9.4839000000000002,"495"]
[572,"CAPSULES EN POLYPROPYLENE","M","Bague 30mm, JT TS",1,"Unité",0.20200000000000001,"572"]
[670,"POTASSIUM HYDROXYDE PASTILLES - 1KG","N","AnalaR NORMAPUR",1,"KG",17.574000000000002,"670"]
[671,"SODIUM HYDROXYDE PASTILLES - 1KG","N","AnalaR NORMAPUR",1,"KG",16.564,"671"]
[812,"SODIUM SULFATE ANHYDRE - 1KG","N",0.99,1,"KG",21.4221,"812"]
[875,"N-HEXANE HPLC - 2.5L","C","RS for HPLC, isocratic",2.5,"L",20.704999999999998,"875"]
[876,"HEPTANE HPLC - 2.5L","N","HPLC",2.5,"L",22.078600000000002,"876"]
[1031,"ALUMINIUM OXYDE 90, NEUTRE - 1KG","C","Pour CC, activé I",1,"KG",55.55,"1031"]
[1165,"GRAISSE POUR RODAGES K.W.S.","N","Pour robinet/rodage",50,"GR",25.6035,"1165"]
[1388,"TUBES A ESSAIS ROTILABO EN VERRE SODO-CALCIQUE X 250","V","L160 x Ø.16 x épaisseur.0.6 mm",250,"Unités",29.441500000000001,"1388"]
[1523,"METHANOL - 1L","N","RPE ACS pour analyse",1,"L",4.5449999999999999,"1523"]
[1524,"ETHANOL ABSOLU - 1L","N","RPE ACS pour analyse",1,"L",7.0094000000000003,"1524"]
[1559,"ENTONNOIRS EN POLYPROPYLENE","M","Diam. 65 mm",1,"Unité",1.01,"1559"]
[1828,"FLACONS COL LARGE 30 ML(POT DE CREME)(19202)","V","Vis 38",1,"Unités",1.0201,"1828"]
[2102,"ETHANOL 96 % - 2.5L","N","puriss meets anal",2.5,"L",14.544,"2102"]
[2207,"BLOUSE TAILLE 58","M","T 7",1,"Ex",15.15,"2207"]
[2329,"BLOUSES HOMMES EN COTON - T3","M","taille 46",1,"Unité",17.200299999999999,"2329"]
[2512,"SABLE DE FONTAINEBLEAU - 5KG","N","99,8 %,150 - 300 µm",5,"KG",20.109100000000002,"2512"]
[2584,"PAPIERS INDICATEURS DE PH ROTA","M","pH 1-10 par unité pH",1,"Unité",2.8279999999999998,"2584"]
[2665,"MAGNESIUM SULFATE - 5KG","N","Pour dessécher",5,"KG",36.915500000000002,"2665"]
[2701,"GANTS NITRILE TAILLE S ","M","Taille Small",100,"Unit",5.05,"2701"]
[2753,"TAMPON CONCENTRE TITRISOL","N","pH 8,00 +/- 0,02(20°",1,"Unité",4.8075999999999999,"2753"]
[2773,"ACIDE SULFURIQUE 95-97 %","N","ACS Reagent",1,"L",7.1306000000000003,"2773"]
[2798,"BALLONS MONOCOLS RODES 10 ML","V","Rodage 14/23, fond rond",1,"Unité",4.9287999999999998,"2798"]
[2957,"MARQUEURS A FEUTRE","M","Couleur rouge",1,"Unités",2.9592999999999998,"2957"]
[3081,"PAPIERS FILTRES BLANCS","M","42 x 52 cm",25,"Unités",2.8178999999999998,"3081"]
[3184,"GOUPILLONS POUR TUBES CAPILLAIRES","M","Brosse : 50 x 10 mm",1,"Unités",2.0402,"3184"]
[3185,"GOUPILLONS POUR BALLONS","M","Brosse : 50 x 90 mm",1,"Unité",2.3431999999999999,"3185"]
[3252,"PARAFILM GRADE \"M\"","M","L 38 m, l 100 mm",1,"Unité",21.371600000000001,"3252"]
[3259,"TUBES DE R.M.N.  X 100","R"," + caps - 5 mm - 7\"",100,"Unités",126.25,"3259"]
[3287,"N-PENTANE - 5L","N","RE",5,"L",35.5015,"3287"]
[3361,"ETHANOL ABSOLU - 1L","N","anhydre RPE ACS",1,"L",5.9589999999999996,"3361"]
[3439,"ALUMINIUM OXYDE 90, BASIQUE - 1KG","C","Pour CC, activé I",1,"KG",55.55,"3439"]
[3502,"FIOLES JAUGEES 1 L, CLASSE A","V","Bouchées 24/29",1,"Unité",15.0793,"3502"]
[3527,"FIOLES ERLENMEYERS 50 ML CONIQUES","V","Etr. ouverture,Fishe",1,"Unités",5.1409000000000002,"3527"]
[3726,"BOBINE ESSUYAGE LISSE -  PETIT ROULEAU","M","Pure ouate, 450 FTS ",1,"Unités",4.3834,"3726"]
[3957,"SERINGUES HAMILTON 701 RN","C","10 µl,aiguille amovi",1,"Unité",32.825000000000003,"3957"]
[3985,"SERINGUES EN VERRE, AVEC CÖNE EN METAL ET RACCORD LUER-LOOCK","C","1 ml",1,"Unité",12.968400000000001,"3985"]
[3988,"SERINGUES HAMILTON 710 N","C","100 µl,aiguille fixe",1,"EA",40.420200000000001,"3988"]
[4016,"VALET BIBASE REVERSIBLE","M","En silicone 50-500ml",1,"Ex",31.815000000000001,"4016"]
[4027,"SERINGUES HAMILTON 7001 RN","C","1 µl, aiguille amovi",1,"EA",50.600999999999999,"4027"]
[4056,"SERINGUES HAMILTON 701 N","C","10 µl,aiguille fixe",1,"Unité",27.835599999999999,"4056"]
[4084,"BALLONS MONOCOLS RODES 100 ML","V","Rodage 29/32,fd rond",1,"Unités",4.2925000000000004,"4084"]
[4085,"BALLONS MONOCOLS RODES 250 ML","V","Rodage 29/32, fond rond",1,"Unités",9.8879000000000001,"4085"]
[4092,"TUBES A ESSAIS EN VERRE BOROSILICATE","V","18x180mm,épais.1,2mm",100,"Unités",33.228999999999999,"4092"]
[4242,"SERINGUES HAMILTON 705 N","C","50 µl, aiguille fixe",1,"EA",32.825000000000003,"4242"]
[4358,"PIPETTES PASTEUR 150 MM","V","Non stériles,non cot",250,"Unités",8.4739000000000004,"4358"]
[4360,"PIPETTES PASTEUR 230 MM 40011107541","V","Non stériles,non cotonnées",250,"Unités",11.200900000000001,"4360"]
[4377,"DETERGENT DE LABORATOIRE - 5L","M","RBS 25",5,"L",61.458500000000001,"4377"]
[4406,"FIOLES JAUGEES 1 ML CLASSE A","V","7/16 bouchées",1,"Unités",32.622999999999998,"4406"]
[4415,"BALLONS MONOCOLS RODES 50 ML","V","Rodage 29/32, fond rond",1,"Unité",10.958500000000001,"4415"]
[4476,"FIOLES ERLENMEYER A COL LARGE 50 ML","V","En DURAN®, avec graduation ",1,"Unités",1.3028999999999999,"4476"]
[4515,"BLOUSES HOMMES COTON - T2","M","Taille  48",1,"Unité",21.8766,"4515"]
[4516,"2-PROPANOL HPLC - 1L","C","CHROMASOLV®, for HPLC, 99.9% ",1,"L",7.3224999999999998,"4516"]
[4517,"BLOUSES HOMME COTON - T4","M","Taille 52",1,"Unit",15.15,"4517"]
[4518,"BLOUSE HOMME COTON  - T6","M","taille 52",1,"Unit",21.8766,"4518"]
[4519,"BALLONS BICOLS 100 ML","V","RC 14/23, RL 14/23",1,"Ex",10.756500000000001,"4519"]
[4569,"PARAFILM GRADE \"M\"","M","L 75 m, l 50 mm",1,"Unité",20.351500000000001,"4569"]
[4592,"SPATULES / CUILLERES","M","Acier inox, 210mm",1,"Unités",5.0297999999999998,"4592"]
[4602,"CRISTALLISOIRS 60 ML EN VERRE DURAN 50","V","Avec bec, 60 x 35 mm",1,"Unités",3.0804999999999998,"4602"]
[4603,"CRISTALLISOIRS 300 ML EN VERRE DURAN 50","V","Avec bec, 100x50 mm",1,"Unités",4.1308999999999996,"4603"]
[4604,"ENTONNOIRS A TIGE COURTE, 60°","V","Diamètre 35 mm",1,"Unités",3.03,"4604"]
[4605,"ENTONNOIRS EN VERRE ROTILABO®","V","En verre sodocalcique. avec tige courte. angle 60°, diamètre 80 mm",1,"Unités",3.6966000000000001,"4605"]
[4609,"FIOLES JAUGEES 250 ML CLASSE A","V","Bouchon plastique",1,"Unités",10.756500000000001,"4609"]
[4644,"BALLONS BICOLS 100 ML","V","RC 29/32, RL 19/26",1,"Ex",22.189699999999998,"4644"]
[4648,"CRISTALLISOIRS 150 ML EN VERRE DURAN 50","V","Avec bec, 80 x 45 mm",1,"Unités",9.2515999999999998,"4648"]
[4649,"EPROUVETTES GRADUEES 2 LITRES","V","Verre bor. div. 20ml",1,"Unité",30.5929,"4649"]
[4650,"EPROUVETTES GRADUEES 10 ML CATEGORIES A","V","En verre borosilicaté 3.3, à graduation bleue ",1,"Unités",7.8780000000000001,"4650"]
[4658,"BALLONS FOND ROND, DURAN®, VERRE TRANSPARENT 50 ML","V","Rodage 14/23 ",1,"Unité",6.6760999999999999,"4658"]
[4659,"BALLONS MONOCOLS RODES 100 ML","V","Rodage 19/26,fond rond",1,"Unité",3.8279000000000001,"4659"]
[4674,"GANTS NITRILE TAILLE M1100","m","taiile M",100,"Unit",5.05,"4674"]
[4768,"EPROUVETTES GRADUEES 100 ML","V","Verre bor. div. 1 ml",1,"Unités",6.4438000000000004,"4768"]
[4828,"CAPUCHONS EN CAOUTCHOUC POUR PIPETTES DE PRELEVEMENTS - 1ML","M","1 ml, vert",1,"Unités",1.5149999999999999,"4828"]
[4829,"CAPUCHONS EN CAOUTCHOUC POUR PIPETTES DE PRELEVEMENTS  - 2ML","M","2 ml, gris",1,"Unité",1.6564000000000001,"4829"]
[4830,"TUYAUX EN CAOUTCHOUC FEUILLE ANGLAISE","M","6 x 9 mm",5,"M",7.3224999999999998,"4830"]
[4832,"TUYAU EN CAOUTCHOUC ROTILABO, POUR LE VIDE","M"," 6 x 16 mm, 5 mm d'épaisseur",5,"M",42.066499999999998,"4832"]
[4833,"TUYAU SILICONE VERSILIC®","M","6 x 9 mm",5,"M",13.5037,"4833"]
[4880,"FLACONS SIROP 30 ML (27)","V","Verre blanc, PP 28",156,"Unités",39.783900000000003,"4880"]
[4883,"FLACONS RONDS STANDARDS 125 ML(572)","V","Verre blanc,D=30mm",1,"Unités",0.59589999999999999,"4883"]
[4885,"FLACONS ROND 2,5 ML (11968) PLAQUE","V","Verre blanc,col bas",360,"Unités",75.285399999999996,"4885"]
[4888,"FLACONS CARNETTE AVEC BOUCHONS","V","8 x 35, 1 ml",10,"Unités",0.45450000000000002,"4888"]
[4890,"FLACONS RONDS 15 ML (167)","V","Verre blanc, PP 28",216,"Unités",37.622500000000002,"4890"]
[4923,"BALLONS A FOND ROND 500 ML","V","Rodage 29/32",1,"Unités",18.684999999999999,"4923"]
[4944,"BECHERS FORME HAUTE 50 ML","V","Verre Duran, avec be",1,"Unités",0.87870000000000004,"4944"]
[4946,"GANTS NITRILE TAILLE L","M","Taille large",100,"Unit",5.05,"4946"]
[4948,"GANTS NITRILE NON POUDRES XL","M","XL",90,"Unités",14.645,"4948"]
[4949,"EPROUVETTES GRADUEES 250 ML","V","Verre bor. div. 2 ml",1,"Unités",11.9079,"4949"]
[4950,"RACCORDS DE REDUCTION - F29/26 - M29/32","V","Rodage femelle 19/26, rodage mâle 29/32",1,"Unité",7.9588000000000001,"4950"]
[5008,"TUYAU SILICONE VERSILIC®","M","8 x 12 mm",5,"M",30.6434,"5008"]
[5013,"BOUCHONS A JUPE RABATTABLE - 7.1MM","M","Diamètre 7,1 mm",10,"Unité",2.4744999999999999,"5013"]
[5014,"BOUCHONS A JUPE RABATTABLE - 10.2MM","M","Diamètre 10,2 mm",10,"Unités",7.2518000000000002,"5014"]
[5015,"BOUCHONS A JUPE RABATTABLE - 12.7MM","M","Diamètre 12,7 mm",10,"Unité",11.594799999999999,"5015"]
[5016,"BOUCHONS A JUPE RABATTABLE  - 23.7MM3","M","Diamètre 23,7 mm",10,"Unités",17.957799999999999,"5016"]
[5017,"BOUCHONS A JUPE RABATTABLE - 19.4MM","M","Diamètre 19,4 mm",20,"Unités",13.5138,"5017"]
[5031,"TUBES DE CULTURE EN VERRE","V","13mmx100mm,fond rond",100,"Unités",10.675700000000001,"5031"]
[5043,"PASTETTES","M","3 ml",500,"Unités",10.1,"5043"]
[5050,"POIRE A PIPETTER STANDARD ROUGE - 5 A 8MM","M","Diamètre 5 à 8 mm",1,"Unité",14.382400000000001,"5050"]
[5051,"POIRE A PIPETER UNIVERSEL ROUGE - 3 A 11MM","M","Diamètre 3 à 11 mm",1,"Unité",9.9080999999999992,"5051"]
[5065,"PIPETTES JAUGEES 3 ML, CLASSE A","V"," 2 traits",1,"Unité",2.4138999999999999,"5065"]
[5136,"METHANOL HPLC - 2.5L","C","Pour HPLC",2.5,"L",8.9082000000000008,"5136"]
[5145,"BOUCHONS A JUPE RABATTABLE - 14.9MM","M","Diamètre 14.9 mm",10,"Unités",9.9990000000000006,"5145"]
[5166,"PISSETTES 500 ML ROTILABO","M","En LDPE souple, inco",1,"Unité",2.9289999999999998,"5166"]
[5173,"NOIX UNIVERSELLES","M","Serrage 2 à 16mm",1,"Unités",9.9687000000000001,"5173"]
[5270,"EPROUVETTES GRADUEES 25 ML CATEGORIE A","V","En verre borosilicaté 3.3, à graduation bleue ",1,"Unités",3.4441000000000002,"5270"]
[5296,"BOBINE ESSUYAGE TORK - PETIT ROULEAU","M","1 pli, 24 cm x 300 m, 26 g",1,"Unité",9.4031000000000002,"5296"]
[5511,"TUBES DE BOREL","V","40 x 85 mm",1,"Unité",3.7673000000000001,"5511"]
[5562,"PISSETTES 250 ML ROTILABO","M","En LDPE souple, inco",1,"Unité",1.4139999999999999,"5562"]
[5575,"BALLONS MONOCOLS RODES 100 ML","V","Rodage 29/32,fd plat",1,"Unité",4.4137000000000004,"5575"]
[5576,"PISSETTES 1 LITRE ROTILABO","M","En LDPE souple, inco",1,"Unité",3.6461000000000001,"5576"]
[5658,"SERINGUES 10ML - USAGE UNIQUE","M","10 ml, raccord luer",100,"Unités",7.9284999999999997,"5658"]
[5836,"GEL DE SILICE NON FLASH 60 POUR LA C.C - 1KG","C","230-400 mesh ASTM",1,"KG",19.977799999999998,"5836"]
[5905,"PINCES EN BOIS POUR TUBES A ESSAI","M","250 mm",1,"Unités",2.8279999999999998,"5905"]
[5939,"FLACONS COL CARNETTE 3 ML ( 6117)","V","14.25 x 35",288,"Unités",48.833500000000001,"5939"]
[5940,"FLACONS COL CARNETTE 5ML(6117)","V","14.25 x 48, 5",288,"Unités",48.833500000000001,"5940"]
[5987,"TUBE A ESSAIS EN VERRE SODOCALCIQUE","V","180 X 18 mm, 0,5-0,6",250,"Unités",45.197499999999998,"5987"]
[5991,"AMPOULES A DECANTER 1 LITRE","V","Sphéri.,téflon,29/32",1,"Ex",64.054199999999994,"5991"]
[5992,"AMPOULES A DECANTER 500 ML","V","Sphérque,clé verre , 24/29",1,"Unité",75.729799999999997,"5992"]
[5997,"LUNETTES DE PROTECTION","M","Polycarbonate",1,"EA",7.1406999999999998,"5997"]
[6058,"ENTONNOIRS A TIGE COURTE, 60°","V","Diamètre 150 mm",1,"Ex",14.342000000000001,"6058"]
[6092,"BUTANOL-1 - 1L","N","RP Normapur pou anal",1,"L",10.0596,"6092"]
[6112,"FLACONS RONDS STANDARDS 500 ML(9642)","V","Verre blanc,VS40 LO",1,"Unités",1.0807,"6112"]
[6117,"BOUCHONS A AILETTES EN POLYETHYLENE","M","Pour flacons 3/5 ml",10,"Unités",9.0899999999999995E-2,"6117"]
[6274,"MICROSPATULES DOUBLES","M","En acier, 150mm, 5mm",1,"Unité",2.222,"6274"]
[6279,"BARREAUX AIMANTES - 25X6MM","M","25 x 6 mm",1,"Unités",1.4846999999999999,"6279"]
[6280,"BARREAUX AIMANTES - 30X6MM","M","30 x 6 mm",1,"Unités",2.0705,"6280"]
[6281,"BARREAUX AIMANTES - 45X8MM","M","45 x 8 mm, cylindriques",1,"Unités",2.0451999999999999,"6281"]
[6282,"BARREAUX AIMANTES -  12X4.5MM","M","12 x 4,5 mm, cylindriques",1,"Unités",1.9796,"6282"]
[6283,"BARREAUX AIMANTES - 15X4.5MM","M","15 x 4,5 mm",1,"Unités",1.0403,"6283"]
[6284,"BARREAUX AIMANTES - 13X8MM","M","13 x 8 mm",1,"Unité",1.3230999999999999,"6284"]
[6349,"TUYAU GOMME-SOUPLE, CAOUTCHOUC","M","Pour le vide, 8 x18 mm",5,"M",34.410699999999999,"6349"]
[6373,"PINCETTE","M","Droite,arrondie,105 mm",1,"Unité",3.2825000000000002,"6373"]
[6405,"METHANOL HPLC - 1L","C","CHROMASOLV®, for HPLC, 99.9%, ",1,"L-R",5.2419000000000002,"6405"]
[6466,"ETHER DE PETROLE 40 - 60 °C - 5L","N","RE 40-60°",5,"L",19.351600000000001,"6466"]
[6467,"FIOLES JAUGEES 5 ML CLASSE A, BOUCHEES PLASTIQUE","V","10/19, verre transparent",1,"Unités",5.9589999999999996,"6467"]
[6609,"ENTONNOIRS EN VERRE 100 MM","V","Tige courte, 60 °",1,"Unités",15.8873,"6609"]
[6725,"CHLOROFORME - 5L","N","Pure pour synthèses",5,"L",23.9269,"6725"]
[6822,"FIOLES JAUGEES 200 ML CLASSE A","V","Bouchée plastique, 24-29 mm",1,"Unité",6.7164999999999999,"6822"]
[6939,"BOBINE ESSUYAGE TORK - GROS ROULEAU","M","2 plis, 24 x 30 cm, 2 x 20 g",1,"Unité",20.351500000000001,"6939"]
[7000,"AMPOULES A DECANTER 250 ML","V","Sphér.,téflon,19/26",1,"Unité",38.965800000000002,"7000"]
[7141,"TAMPON CONCENTRE TITRISOL","N","pH 4,00 +ou- 0,02",1,"Unité",5.05,"7141"]
[7218,"EPROUVETTES GRADUEES 1 LITRE","V","Verre bor. div. 10ml",1,"Unités",68.8416,"7218"]
[7371,"SERINGUES 20 ML USAGE UNIQUE","M","20 ml",80,"Unités",5.7065000000000001,"7371"]
[7393,"ETHANOL ABSOLU HPLC - 2.5L","C","Pour  HPLC",2.5,"L",13.443099999999999,"7393"]
[7443,"GOUPILLONS POUR TUBES A ESSAIS","M","Brosse 30 x 110 mm, bout retourné",1,"Unités",1.5048999999999999,"7443"]
[7505,"SERINGUES HAMILTON 705 RN","C","50 µl, aiguille amovible",1,"Unité",43.228000000000002,"7505"]
[7626,"ENTONNOIRS A TIGE COURTE, 60°","V","Diamètre 45 mm",1,"Unité",3.5047000000000001,"7626"]
[7735,"AIGUILLE A USAGE UNIQUE BISEAU LONG - BLEU - 0.6X80MM","M","Bleu, 0,60 x 80 mm, 23 G",100,"Unités",9.7970000000000006,"7735"]
[7736,"AIGUILLE COURTE BLEU","M","0.6x16 mm",100,"Unité",2.7269999999999999,"7736"]
[7989,"FLACONS SIROP 1 LITRE (27)","V","Verre ambré, PP 28",1,"Unités",1.8887,"7989"]
[8112,"GOUPILLONS POUR TUBES HEMOLYSE","M","Brosse : 12 x 80 mm, bout retourné",1,"Unités",3.1815000000000002,"8112"]
[8114,"GOUPILLONS POUR LITRES","M","Brosse : 50 x 130 mm",1,"Unité",2.9289999999999998,"8114"]
[8190,"CONES POUR MICROPIPETTES","M","201-1000 µl, bleu",1000,"Unités",17.8063,"8190"]
[8201,"SERINGUES 5ML USAGE UNIQUE","M","5 ml, raccord luer ",100,"Unités",4.444,"8201"]
[8292,"CRISTALLISOIRS 900 ML EN VERRE DURAN 50","V","Avec bec, 140 x 75 mm",1,"Unité",10.1303,"8292"]
[8542,"ACETONE - 2.5L","N","Analytical Reagent",2.5,"L-D",8.3628,"8542"]
[8553,"METHANOL - 1L","N","Anhydre - Pour analyse",1,"L",5.3429000000000002,"8553"]
[8589,"DICHLOROMETHANE HPLC - 2.5L","N","CHROMASOLV®, for HPLC, 99.8%, contains amylen as stabilizer ",2.5,"L",8.1708999999999996,"8589"]
[8621,"GOUPILLONS POUR TUBES A ESSAIS","M","Brosse : 18 x 110 mm, bout retourné",1,"Unités",2.0604,"8621"]
[8644,"BECHERS FORME BASSE 25 ML","V","Gradués, à bec",1,"Unités",3.3330000000000002,"8644"]
[8645,"BECHERS FORME BASSE 50 ML","V","Gradués, avec bec",1,"Unités",0.80800000000000005,"8645"]
[8646,"BECHERS FORME BASSE 100 ML","V","Gradués, à bec",1,"Unités",0.82820000000000005,"8646"]
[8647,"BECHERS FORME BASSE 150 ML","V","Gradués, à bec",1,"Unités",1.7372000000000001,"8647"]
[8648,"BECHERS FORME BASSE 250 ML","V","Gradués, à bec",1,"Unité",1.6564000000000001,"8648"]
[8649,"BECHERS FORME BASSE 400 ML","V","Gradués,à bec,80x110",1,"Unités",1.7473000000000001,"8649"]
[8650,"BECHERS FORME BASSE 1 LITRE","V","Gradués, à bec",1,"Unité",6.7872000000000003,"8650"]
[8651,"BECHERS FORME HAUTE 100 ML","V","Gradués, à bec",1,"Unités",0.68679999999999997,"8651"]
[8652,"BECHERS FORME HAUTE 150 ML","V","Gradués, à bec",1,"Unité",2.1614,"8652"]
[8653,"BECHERS FORME HAUTE 250 ML","V","Gradués, à bec",1,"Unités",1.2221,"8653"]
[8654,"BECHERS FORME HAUTE 400 ML","V","Gradués, à bec",1,"Unité",2.323,"8654"]
[8655,"BECHERS FORME HAUTE 600 ML","V","Gradués, à bec",1,"Unités",1.5149999999999999,"8655"]
[8656,"BECHERS FORME HAUTE 1 LITRE","V","Gradués, à bec",1,"Unité",3.7976000000000001,"8656"]
[8661,"FIOLES ERLENMEYER A COL LAGE 100 ML","V","En DURAN®, avec graduation ",1,"Unité",2.0099,"8661"]
[8663,"FIOLES ERLENMEYERS 250 ML","V","Large ouverture",1,"Unités",2.9289999999999998,"8663"]
[8664,"FIOLES ERLENMEYERS 500 ML","V","Large ouverture",1,"Unité",1.5958000000000001,"8664"]
[8688,"FIOLES JAUGEES 100 ML,CLASSE A","V","Bouchées 14/23",1,"Unités",6.6862000000000004,"8688"]
[8695,"EPROUVETTES GRADUEES 50 ML CATEGORIE A","V","En verre borosilicaté 3.3? à graduation bleue ",1,"Unités",5.4237000000000002,"8695"]
[8721,"EXTRACTEURS POUR BARREAUX AIMANTES","M","PTFE, 350 x 8 mm",1,"Unité",16.260999999999999,"8721"]
[8771,"CRISTALLISOIRS 2 L EN VERRE DURAN 50","V","Avec bec, 190x90 mm",1,"Unité",30.097999999999999,"8771"]
[8811,"BALLONS A FOND ROND 1 LITRE","V","Verre Duran, 29/32",1,"Unité",15.5944,"8811"]
[8871,"SUPPORT ELEVATEUR","M","20x20 cm",1,"Unité",54.065300000000001,"8871"]
[8872,"RACCORDS DE REDUCTION","V","Rodage femelle  29/32, rodage mâle 19/26",1,"Unité",7.9588000000000001,"8872"]
[9057,"BOUCHONS EN POLYETHYLENE 29/32","M","Rodage 29/32",1,"Unités",2.0099,"9057"]
[9058,"BOUCHONS EN POLYETHYLENE 19/26","M","Rodage 19/26",1,"Unités",0.57569999999999999,"9058"]
[9089,"ACETONITRILE HPLC - 2.5L","C","CHROMASOLV® \n gradient grade, for HPLC, 99.9 %",2.5,"L-D",18.1295,"9089"]
[9214,"MASQUES ANTI POUSSIERES ","M","Protection FFP1 de 3M N° 8710",1,"Unités",1.1009,"9214"]
[9236,"TOLUENE - 5L","N","RE puro",5,"L",20.482800000000001,"9236"]
[9264,"FIOLES JAUGEES 10 ML CLASSE A BOUCHEES PLASTIQUES","V","10/19, verre transparent",1,"Unités",4.5147000000000004,"9264"]
[9293,"BOUCHONS EN POLYETHYLENE 24/29","M","Rodage 24/29",1,"Unités",1.3917999999999999,"9293"]
[9422,"PIPETTES PASTEUR 230 MM - BOUT COTONNE","V","Stériles, bout cotonné",250,"Unités",21.9877,"9422"]
[9637,"LAMES LAVEES, DEGRAISSEES","M","76 x 26 mm, bruts",50,"Unités",2.9289999999999998,"9637"]
[9641,"FLACONS RONDS STANDARDS 1 L (9642)","V","Verre blanc, BG40 LO",1,"Unités",1.7170000000000001,"9641"]
[9642,"CAPSULES BAKELITE NOIRE","M","BG40 jointe TS",1,"Unité",0.30299999999999999,"9642"]
[9861,"DIMETHYLE SULFOXYDE D6 - 10GR","R","99,80 %",10,"GR",16.16,"9861"]
[9863,"METHANOL D4 - 10ML","R",0.998,10,"ML",29.189,"9863"]
[9866,"DEUTERIUM OXIDE 25GR","R","99.9 atom % D",25,"GR",26.562999999999999,"9866"]
[9871,"FLACONS SIROP 60 ML (27)","V","Verre blanc, PP 28",127,"Unités",30.865600000000001,"9871"]
[9918,"FLACONS RONDS 10 ML (167)","V","Verre blanc, PP 28",195,"Unités",48.984999999999999,"9918"]
[10124,"TUYAU EN CHLORURE DE POLYVINYLE CRISTAL","M","Renforcé, 10 x 16 mm",1,"M",3.8784000000000001,"10124"]
[10160,"PINCES POUR RODAGES CONIQUES(CLIPS) - 14/23 - JAUNE","M","Rodage 14/23, jaune",1,"Unités",1.9998,"10160"]
[10161,"PINCES POUR RODAGES CONIQUES(CLIPS) - 19/26 - BLEU","M","Rodage 19/26, bleu",1,"Unités",2.7067999999999999,"10161"]
[10162,"PINCES POUR RODAGES CONIQUES(CLIPS) - 24/29 - VERT","M","Rodage 24/29, vert",1,"Unités",3.7875000000000001,"10162"]
[10163,"PINCES POUR RODAGES CONIQUES(CLIPS) - ROUGE - 29/32","M","Rodage 29/32, rouge",1,"Unités",4.0702999999999996,"10163"]
[10174,"COTON CARDE - ROULEAU 500 GR","M","Décontaminé",1,"Unité",9.8575999999999997,"10174"]
[10357,"GANTS NEOPRENE - T9","M","Taille  9",1,"Paires",4.2016,"10357"]
[10743,"BARREAUX AIMANTES OVOIDES -  10X20MM","M","10 x 20 mm",1,"Unité",1.3836999999999999,"10743"]
[10873,"SERINGUES EN VERRE BOROSILICA-","C","50ml, Luer-Lock, 1ml",1,"Unité",24.290500000000002,"10873"]
[11072,"PINCES RODAGES CONIQUES (CLIPS) - VERT - 10/19","M","Rodage 10/19, vert",1,"Unités",3.03,"11072"]
[11084,"CONES EN CAOUTCHOUC -  D 10/22- 55/85 MM","M","Série de 7 cônes",1,"Set",19.755600000000001,"11084"]
[11300,"LAMELLES COUVRE-OBJETS CARREES","M","18x18 mm,.13 à.17 mm",1000,"Unités",15.8065,"11300"]
[11651,"SERINGUES EN VERRE BOROSILICA-","C","2 ml, Luer-Lock",1,"Unité",15.250999999999999,"11651"]
[11832,"BALLONS  A GAZ ROTILABO®","M","coloris assortis",100,"Unités",11.8675,"11832"]
[11842,"BARREAUX AIMANTES OVOIDES - 15X30MM","M","15 x 30 mm",1,"Unité",1.9594,"11842"]
[11961,"PIPETTES JAUGEES 0.5 ML, CLASSE AS","V","2 traits",1,"Unité",4.2218,"11961"]
[11963,"PIPETTES GRADUEES 5ML CLASSE B","V","2026-01-20",1,"Unité",5.05,"11963"]
[11968,"CAPSULES BAKELITE NOIRE","M","PO D.13 mm TS/Noir",1,"Unité",0.1212,"11968"]
[12096,"BOUCHONS RODES - 24/29","V","En verre 24/29",1,"Ex",1.4543999999999999,"12096"]
[12097,"SODIUM CHLORURE - 5KG","N","Technical",5,"KG",13.5845,"12097"]
[12102,"FIOLES JAUGEES 2 ML CLASSE A","V","7/1, verre Duran",1,"Unités",13.938000000000001,"12102"]
[12342,"ETHANOL HPLC - 1L","C","Anhydre, RS HPLC",1,"L",17.816400000000002,"12342"]
[12454,"SERINGUES 1 ML - USAGE UNIQUE ","M","1 ml, graduation 0.01 ml",100,"Unités",9.6252999999999993,"12454"]
[12495,"BLOUSES HOMMES EN COTON - T5","M","tTaille 50",1,"Unité",20.704999999999998,"12495"]
[12587,"MASQUE ANTI-ODEUR","M","Couche filtrante spé",1,"Unités",6.06,"12587"]
[12737,"BOUCHONS EN VERRE CLAIR A TETE FORME HAUTE","V","Rodage 29/32",1,"Unités",1.7877000000000001,"12737"]
[12800,"TUBES A HEMOLYSE EN VERRE DE CHIMIE","V","5 ml,13x75mm 0,5-0,6",500,"Unités",29.148599999999998,"12800"]
[12892,"GANTS NEOPRENE - T7","M","Taille 7 ",1,"Paires",4.2016,"12892"]
[12960,"RACCORDS DE REDUCTION - F29/32 - M14/23","V","En DURAN®,rodage femelle 29/32, rodage mâle 14/23",1,"Unité",7.0094000000000003,"12960"]
[12972,"CAPSULES DE PESEE A USAGE UNIQUE","M","En aluminium,52 ml, 73 x 20 mm",100,"Unités",9.1506000000000007,"12972"]
[12997,"CONES POUR MICROPIPETTES","M","1 à 200 µl, jaune",1000,"Unités",5.9589999999999996,"12997"]
[13211,"BARREAUX AIMANTES OVOIDES - 20X40MM","M","20 x 40 mm",1,"Unité",2.7976999999999999,"13211"]
[13245,"SERINGUES 2 ML USAGE UNIQUE","M","2 ml, raccord luer",100,"Unités",4.2016,"13245"]
[13430,"PIPETTES JAUGEES 2 ML, CLASSE AS","V","2 traits",1,"Unité",6.9790999999999999,"13430"]
[13819,"FIOLES ERLENMEYER  A COL LARGE 1000 ML","V","En DURAN®, avec graduation ",1,"Unité",5.4539999999999997,"13819"]
[13973,"FIOLES JAUGEES 25 ML, CLASSE A","V","Bouchées 10/19",1,"Unités",5.5853000000000002,"13973"]
[14023,"EAU  HPLC - 1L","C","RS H.P.L.C., Plus",1,"L",5.6761999999999997,"14023"]
[14159,"BOUCHONS EN VERRE CLAIR A TETE FORME HAUTE","V","Rodage 19/26",1,"Unités",1.2927999999999999,"14159"]
[14248,"PIPETTES JAUGEES 1 ML, CLASSE AS","V","2 traits",1,"Unités",2.1513,"14248"]
[14249,"PIPETTES JAUGEES 5 ML, CLASSE B","V","1 trait",1,"Unités",2.4744999999999999,"14249"]
[14250,"PIPETTES JAUGEES 10 ML, CLASSE A","V","Sans boule, 2 traits",1,"Unités",9.3020999999999994,"14250"]
[14251,"PIPETTES JAUGEES 20 ML, CLASSE A","V","2 traits",1,"Unités",10.352499999999999,"14251"]
[14252,"PIPETTES JAUGEES 25 ML, CLASSE AS","V","2 traits",1,"Unité",4.3733000000000004,"14252"]
[14513,"AIGUILLE A USAGE UNIQUE - 0.80X50MM","M","Vert, 0,80 x 50mm, biseau long, 21 G",100,"Unités",2.9087999999999998,"14513"]
[15410,"GANTS D'EXAMEN LATEX T6/7","M","Non poudrés, T 6/7",100,"Unités",6.7872000000000003,"15410"]
[15411,"GANTS D'EXAMEN LATEX T7/8","M","Non poudrés, T 7/8",100,"Unités",6.7872000000000003,"15411"]
[15412,"GANTS D'EXAMEN LATEX T8/9","M","Non poudrés, T 8/9",100,"Unités",6.7872000000000003,"15412"]
[15482,"BLOUSES LABORATOIRE COTON - S","M","T S",1,"Unité",26.472100000000001,"15482"]
[16945,"AIGUILLE  A USAGE UNIQUE  - 0.8X120MM","M","G21 ,0,8 x 120 mm, l-lock",100,"Unités",12.251300000000001,"16945"]
[17370,"AIGUILLES TERUMO - ROSE - 38X1.2MM","M","rose 38 x 1,2 mm, 18G",100,"Unités",2.7269999999999999,"17370"]
[19202,"BOUCHON ETANCHE POUR FLACON COL LARGE","M","38 mm",1,"Unités",0.34839999999999999,"19202"]
[21210,"BLOUSE DAMES ET HOMMES  - XS","M","XS",1,"Unité",24.300599999999999,"21210"]
[22730,"TUBE HEMOLYSE PP¨","M","13 x 75 mm, NST",2000,"Unités",36.198399999999999,"22730"]
[22731,"TUBES HEMOLYSE PP","M",null,1000,"unit",13.736000000000001,"22731"]
[22783,"LUNETTES ","M","verte",1,"Unité",3.0198999999999998,"22783"]
[26518,"BECHER PP GRADUÉ BLEU","V","500ml",1,"Ex",1.9695,"26518"]
[26521,"2-PROPANOL, BIOREAGENT",null,null,500,"ML",48.530500000000004,"26521"]

{"sheet":"FE","index":4,"n_rows":456,"n_cols":17,"rows_kept":456,"cut":false,"hidden":true,"merged":[]}
[null,null,"Critère",null,null,null,null,null,null,"Numéro produit","Nom produit","Code produit","Qualité","Conditionnement vente","Mesure","Prix de vente","Catégories"]
[null,null,"Nom produit","Code produit",null,"Nb lig autorisée (BDC)","=NBVAL(Saisie!C19:C48)"]
[null,null,{"$f":"\"*\" & D4 & \"*\"","v":"**"},"<>P"]
[null,null,"Rechercher un mot ou une partie de mot",null,null,"Nb Lig reste (BDC)","=30-H2"]
[]
[null,null,null,null,null,"Nb lig FE","=NBVAL(B11:B1000)"]
[]
[]
[null,"A","B","D","E","F","G","H"]
[null,{"$f":"INDIRECT(\"PRODUITS!\" & B$9 & \"2\")","v":"Numéro produit"},{"$f":"INDIRECT(\"PRODUITS!\" & C$9 & \"2\")","v":"Nom produit"},"Qualité","Conditionnement vente","Mesure","Prix de vente avec remise","TexteNuméroProduit"]
[null,1,"MASQUE CHIRURGICAL","cat3/3 plis",50,"Unité",28.264199999999999,"1"]
[null,2,"DERTERGENT NEODISHER LABOCLEAN ","A8",10,"KG",58.598999999999997,"2"]
[null,3,"NEUTRALISANT ACIDE LIQUIDE NEODISHER","Z",5,"L",53.753999999999998,"3"]
[null,4,"ETHYLE ACETATE","RE",5,"L",22.3992,"4"]
[null,6,"ETHYLE ACETATE","RPE ACS reagent",1,"L",4.3860000000000001,"6"]
[null,10,"ACETONE","99.5 %, laboratory reagent",5,"L",9.69,"10"]
[null,11,"NETTOYANT  A 25","NB 34",10,"kg",187.68,"11"]
[null,12,"NEUTRALISANT ACIDE LIQUIDE","NB 34",5,"KG",16.707599999999999,"12"]
[null,13,"ACETONE TECHNIQUE","RE puro",5,"L",8.7617999999999991,"13"]
[null,14,"ACETONE","Pour analyses anhydres",1,"L",3.7536,"14"]
[null,16,"ACETONE","RPE-ACS-ISO pour anl",1,"L",4.1616,"16"]
[null,19,"ACETONITRILE","Pour analyses anhydres",1,"L",9.4553999999999991,"19"]
[null,21,"FLACONS SIROP 250 ML(27)","Verre blanc, PP 28",1,"Unités",0.2601,"21"]
[null,23,"ACIDE CHLORHYDRIQUE 35 %","Technical",1,"L",2.8050000000000002,"23"]
[null,24,"ACIDE CHLORHYDRIQUE 35 %","RPH",1,"L",4.59,"24"]
[null,27,"CAPSULES EN BAKELITE","BG28 jointe TS",1,"Unité",0.10199999999999999,"27"]
[null,30,"ACIDE FLUORHYDRIQUE 40 %","RP Normapur p.a.",1,"L",15.4428,"30"]
[null,35,"BOBINE ESSUYAGE BLANC 1000 FTS","Pure ouate",1,"Unités",7.9050000000000002,"35"]
[null,36,"ACIDE NITRIQUE 68 %","AnalaR NORMAPUR",1,"L",9.3635999999999999,"36"]
[null,37,"ACIDE NITRIQUE 69 %","RP Normapur p.a.",1,"L",4.5491999999999999,"37"]
[null,39,"ACIDE ORTHOPHOSPHORIQUE 85 %","RP Normapur p.a.",1,"L",11.107799999999999,"39"]
[null,42,"ACIDE SULFURIQUE 95 %",null,1,"L",7.0267999999999997,"42"]
[null,51,"ETHANOL 95°","RPE ACS pour analyse",1,"L",4.2534000000000001,"51"]
[null,52,"ETHANOL 96°","TechniSolv®",5,"L",8.8026,"52"]
[null,53,"ETHANOL ABSOLU","99.9 %, anhydre",5,"L",9.2615999999999996,"53"]
[null,54,"ALCOOL ISOPROPYLIQUE (PROPANOL-2)","RPE ACS",1,"L",3.9066000000000001,"54"]
[null,55,"ALCOOL ISOPROPYLIQUE (PROPANOL-2)","Pure pour synthèses",5,"L",11.8728,"55"]
[null,56,"METHANOL","Laboratory Reagent, 99.6 %",5,"L",6.5178000000000003,"56"]
[null,57,"2-PROPANOL","HPLC",2.5,"L",12.24,"57"]
[null,62,"ALDEHYDE FORMIQUE 40 % M/V","ASA Codex",1,"L",8.9963999999999995,"62"]
[null,64,"AMMONIAQUE 28 %","Rectapur",1,"L",4.9062000000000001,"64"]
[null,65,"AMMONIAQUE 32 %","Rectapur",1,"L",5.0693999999999999,"65"]
[null,67,"AMMONIUM CHLORURE","Pour analyse",5,"KG",61.628399999999999,"67"]
[null,90,"CHLOROFORME","RS Spectrophotometri",1,"L",5.4059999999999997,"90"]
[null,91,"CHLOROFORME","Anhydre, pour analyse",1,"L",5.8548,"91"]
[null,92,"CYCLOHEXANE","Puriss. p.a., ACS reagent, 99.5 %",2.5,"L",9.5063999999999993,"92"]
[null,93,"CYCLOHEXANE","RPE ACS reagent II",1,"L",5.0286,"93"]
[null,94,"CYCLOHEXANE","RPE-ACS Reagent",2.5,"L",11.587199999999999,"94"]
[null,96,"DICHLOROMETHANE","RE, stabilisé à l'éthanol",5,"L",16.370999999999999,"96"]
[null,98,"DICHLOROMETHANE","RPE ACS",1,"L",4.2839999999999998,"98"]
[null,100,"DICHLOROMETHANE","Pour analyses anhydr",1,"L",6.4157999999999999,"100"]
[null,104,"N,N-DIMETHYLFORMAMIDE","RE",1,"L",3.8862000000000001,"104"]
[null,106,"ETHYLENE GLYCOL DIMETHYL ETHER","99 +%, extra pure, stabilized with BHT",1,"L",16.554600000000001,"106"]
[null,107,"ETHYLENE GLYCOL",0.98,2.5,"L",7.9560000000000004,"107"]
[null,108,"DIMETHYLSULFOXYDE","RE",1,"L",6.12,"108"]
[null,114,"ETHER ETHYLIQUE","Purex pour analyses",2.5,"L",11.933999999999999,"114"]
[null,115,"ETHER ETHYLIQUE","PA, anhydre",1,"L",6.63,"115"]
[null,121,"SODIUM CARBONATE ANHYDRE","RPE ACS",1,"KG",7.7519999999999998,"121"]
[null,125,"GLYCEROL","Rectapur",1,"L",4.8348000000000004,"125"]
[null,126,"N-HEPTANE","RPE, 99.7 %",1,"L",4.59,"126"]
[null,130,"N-HEXANE ","RPE ACS",1,"L",5.8140000000000001,"130"]
[null,132,"N-HEXANE 95 %","Anhydre, pour analyse",1,"L",6.7320000000000002,"132"]
[null,133,"HYDROGENE PEROXYDE 30 % (110V)","RP Normapur pour analyses.",1,"L",7.4358000000000004,"133"]
[null,143,"TRIMETHYL-2,2,4-PENTANE","Purex pour analyses",2.5,"L",20.297999999999998,"143"]
[null,147,"PENTANE 95 %","Purex pour analyses",2.5,"L",17.135999999999999,"147"]
[null,148,"PENTANE 95 %","Anhydre, pour analyse",1,"L",9.2411999999999992,"148"]
[null,153,"SODIUM CHLORURE","RP Normapur p.a.",1,"KG",2.7846000000000002,"153"]
[null,154,"SODIUM HYDROGENOCARBONATE","RP Normapur p.a.",1,"KG",11.526,"154"]
[null,158,"SEL DE DENEIGEMENT",null,25,"KG",11.158799999999999,"158"]
[null,165,"TETRAHYDROFURANNE","Pure pour synthèses",5,"L",42.299399999999999,"165"]
[null,166,"GRAISSES DOW CORNING","Pour vide normal (trop^me à eau), consictance oindrée, transparent, thermostable de -40 à +200 °C ",50,"GR",10.975199999999999,"166"]
[null,167,"CAPSULES EN POLYPROPYLENE","BG18 jointe TS",100,"Unité",8.8841999999999999,"167"]
[null,168,"TETRAHYDROFURAN","ReagentPlus®, 99.0 %, contains 250 ppm BHT as inhibitor",1,"L",6.8339999999999996,"168"]
[null,170,"TETRAHYDROFURANNE","Anhydre, pour analyse",1,"L",8.0579999999999998,"170"]
[null,171,"TETRAHYDROFURANNE","Anhydre, pour analyse",2.5,"L",14.902200000000001,"171"]
[null,174,"TOLUENE","Anhydre, pour analyse",1,"L",9.1289999999999996,"174"]
[null,178,"ISOOCTANE","RSE",2.5,"L",36.72,"178"]
[null,179,"EAU HPLC","H.P.L.C.",2.5,"L",7.2317999999999998,"179"]
[null,189,"SODIUM HYDROGENOCARBONATE","GPR Rectapur",5,"KG",15.2898,"189"]
[null,191,"SODIUM CARBONATE","Purifié",5,"KG",19.89,"191"]
[null,194,"ACIDE ACETIQUE GLACIAL","RPE-ACS-pour analyse",1,"L",6.8952,"194"]
[null,199,"SPATULES EN ACIER INOXYDABLE","Type analyses, 235mm",1,"Unités",3.0905999999999998,"199"]
[null,201,"DIMETHYLSULFOXYDE","RPE-ACS-pour analyse",1,"L",10.098000000000001,"201"]
[null,202,"DIOXANE-1,4",0.99,0.5,"L",2.9580000000000002,"202"]
[null,204,"HUILE DE SILICONE POUR BAINS CHAUFFANTS","Rititherm® M 220",1,"L",24.021000000000001,"204"]
[null,208,"GEL DE SILICE 60 POUR LA C.C","230-400 mesh ASTM",2.5,"KG",31.62,"208"]
[null,211,"TOLUENE","Puriss. p.a., ACS reagent, reag. ISO, reag. Ph. Eur., 99.7 %",1,"L",4.08,"211"]
[null,216,"CHLOROFORME","RPE, For analysis ISO-ACE-reagent",2.5,"L",9.5879999999999992,"216"]
[null,222,"GEL DE SILICE 60 F254/FEUILLES","Aluminium pour C.C.M",1,"Pack",2.9376000000000002,"222"]
[null,223,"GEL DE SILICE 60(70-230 MESH)","Pour la C C",1,"KG",15.81,"223"]
[null,226,"GEDURAN® SI 60","Pour la chromatographiesur colonne.(0.063-0.200 mm)",2.5,"KG",34.292400000000001,"226"]
[null,228,"SABLE DE MER PURIFIE","0,1-0,3 mm",1,"KG",23.990400000000001,"228"]
[null,231,"ETHER DE PETROLE 60-80°C","Purex pour analyses",1,"L",9.18,"231"]
[null,233,"METHANOL","Spectrosol",1,"L",4.3860000000000001,"233"]
[null,241,"CHLOROFORME D","99.8 atom % D ",100,"ML",12.75,"241"]
[null,242,"CHLOROFORME D","99,80 %",25,"ML",11.1792,"242"]
[null,251,"TOLUENE D8","99,60 %",0.75,"ML",7.0890000000000004,"251"]
[null,252,"HUILE POUR POMPE A VIDE","Alcatel 120",2,"Lot",26.52,"252"]
[null,259,"FORMIC ACID","98 +%, pure",1,"L",6.5789999999999997,"259"]
[null,261,"ACIDE CHLORHYDRIQUE 37 %","RPE-ISO-pour analyse",1,"L",4.08,"261"]
[null,266,"DIMETHYL SULFOXIDE-D6","99,9 atom % D",25,"GR",24.071999999999999,"266"]
[null,268,"TAMIS MOLECULAIRE 4 A",null,1,"KG",19.573799999999999,"268"]
[null,276,"PROPANOL-1","RE",1,"L",6.2118000000000002,"276"]
[null,277,"CELITE 545","Silice diatomée",1,"KG",4.9367999999999999,"277"]
[null,356,"N,N-DIMETHYLFORMAMIDE","RPE-ACS-pour analyse",1,"L",5.7222,"356"]
[null,388,"ETHYL ACETATE","Analytical Reagent",2.5,"L",11.291399999999999,"388"]
[null,389,"TOLUENE","Puriss. p.a., ACS reagent, reag. ISO, reag. Ph. Eur., 99.7 %",2.5,"L",6.63,"389"]
[null,495,"DICHLOROMETHANE","Puriss. p.a., ACS reagent, reag. ISO, 99.9 %",2.5,"L",8.0579999999999998,"495"]
[null,572,"CAPSULES EN POLYPROPYLENE","Bague 30mm, JT TS",1,"Unité",0.1938,"572"]
[null,670,"POTASSIUM HYDROXYDE EN PASTILLES","AnalaR NORMAPUR",1,"KG",7.9458000000000002,"670"]
[null,671,"SODIUM HYDROXYDE EN PASTILLES","AnalaR NORMAPUR",1,"KG",6.7422000000000004,"671"]
[null,797,"LITHIUM ALUMINUM HYDRIDE",0.97,10,"GR-F",21.93,"797"]
[null,803,"TUYAUX EN CHLORURE DE POLYVINYLE CRYSTAL","Armé, 15 x 23 mm",1,"M",2.2848000000000002,"803"]
[null,812,"SODIUM SULFATE ANHYDRE",0.99,1,"KG",5.8140000000000001,"812"]
[null,875,"N-HEXANE","RS for HPLC, isocratic",2.5,"L",14.973599999999999,"875"]
[null,876,"HEPTANE","HPLC",2.5,"L",14.688000000000001,"876"]
[null,999,"DEUTERIUM OXYDE","99,90 %",100,"ML",77.887200000000007,"999"]
[null,1015,"FLACONS A VIS 15 ML","Verre ambré",1,"Unités",0.153,"1015"]
[null,1031,"ALUMINIUM OXYDE 90, NEUTRE","Pour CC, activé I",1,"KG",36.087600000000002,"1031"]
[null,1165,"GRAISSE POUR RODAGES K.W.S.","Pour robinet/rodage",50,"GR",25.856999999999999,"1165"]
[null,1388,"TUBES A ESSAIS ROTILABO EN VERRE SODO-CALCIQUE","L160 x Ø.16 x épaisseur.0.6 mm",250,"Unités",17.523599999999998,"1388"]
[null,1523,"METHANOL","RPE ACS pour analyse",1,"L",3.57,"1523"]
[null,1524,"ETHANOL ABSOLU","RPE ACS pour analyse",1,"L",4.5696000000000003,"1524"]
[null,1559,"ENTONNOIRS EN POLYPROPYLENE","Diam. 65 mm",1,"Unité",0.74460000000000004,"1559"]
[null,1630,"POINTES DE PIPETTES","0,1-10 _x001C_µ",1,"Lot",57.150599999999997,"1630"]
[null,1828,"FLACONS COL LARGE 30 ML(POT DE CREME)(19202)","Vis 38",1,"Unités",0.63239999999999996,"1828"]
[null,1830,"TAMPON CONCENTRE TITRISOL","pH 7,00 +ou- 0,02",1,"Unité",3.5802,"1830"]
[null,1832,"ETHANOL 96°","TechniSolv®",10,"L",18.36,"1832"]
[null,2103,"SOLUTION HYDRO-ALCOOLIQUE","poche robinet",5,"L",38.25,"2103"]
[null,2104,"POMPE DISPENSER 28/410","pour sirop 1l",1,"Unit",0.66300000000000003,"2104"]
[null,2105,"PULVERISATEUR A POMPE ","pp 400 ml",1,"Unit",5.8140000000000001,"2105"]
[null,2106,"GANT LATEX","taille m",100,"Unit",6.12,"2106"]
[null,2107,"GANT LATEX","Taille large",100,"Unit",6.12,"2107"]
[null,2108,"GANT LATEX","Taille 6-7",100,"Unit",7.242,"2108"]
[null,2329,"BLOUSES HOMMES EN COTON","taille 3",1,"Unité",17.798999999999999,"2329"]
[null,2512,"SABLE DE FONTAINEBLEAU","99,8 %,150 - 300 µm",5,"KG",15.3408,"2512"]
[null,2584,"PAPIERS INDICATEURS DE PH ROTA","pH 1-10 par unité pH",1,"Unité",1.9379999999999999,"2584"]
[null,2665,"MAGNESIUM SULFATE","Pour dessécher",5,"KG",28.549800000000001,"2665"]
[null,2701,"GANT NITRILE","Taille Small",100,"Unit",16.044599999999999,"2701"]
[null,2753,"TAMPON CONCENTRE TITRISOL","pH 8,00 +/- 0,02(20°",1,"Unité",3.7637999999999998,"2753"]
[null,2773,"ACIDE SULFURIQUE 96 %","RPE-ISO-pour analyse",1,"L",4.4880000000000004,"2773"]
[null,2798,"BALLONS MONOCOLS RODES 10 ML","Rodage 14/23, fond rond",1,"Unité",2.7642000000000002,"2798"]
[null,2817,"TUBES DE R.M.N. EN 5 MM","Haute précision",1,"Unités",6.2118000000000002,"2817"]
[null,2956,"MARQUEURS A FEUTRE","Couleur bleu",1,"Pack",2.5499999999999998,"2956"]
[null,2957,"MARQUEURS A FEUTRE","Couleur rouge",1,"Unités",2.5499999999999998,"2957"]
[null,3030,"FER III CHLORURE ANHYDRE SUBLIMÉ","RPE pour analyse",25,"KG",420.24,"3030"]
[null,3081,"PAPIERS FILTRES BLANCS","42 x 52 cm",25,"Unités",1.581,"3081"]
[null,3184,"GOUPILLONS POUR TUBES CAPILLAIRES","Brosse de 50 x 10 mm",1,"Unités",1.9379999999999999,"3184"]
[null,3185,"GOUPILLONS POUR BALLONS","Manche en jonc",1,"Unité",2.7029999999999998,"3185"]
[null,3190,"SEL REGENERANT, ADOUCISSEUR D'EAU","En pastilles\n\n\n\n",5,"KG",13.137600000000001,"3190"]
[null,3252,"PARAFILM GRADE \"M\"","L 38 m, l 100 mm",1,"Unité",19.165800000000001,"3252"]
[null,3259,"TUBES DE R.M.N.  ","Diam. * L. 5 mm *  7 in., disposable, blue Code, limit 200 MHz frequency ",1,"Unités",0.81599999999999995,"3259"]
[null,3287,"N-PENTANE","Technical",5,"L",27.958200000000001,"3287"]
[null,3361,"ETHANOL ABSOLU","AnalaR NORMAPUR® pour analyses",1,"L",4.1310000000000002,"3361"]
[null,3439,"ALUMINIUM OXYDE 90, BASIQUE","Pour CC, activé I",1,"KG",31.538399999999999,"3439"]
[null,3502,"FIOLES JAUGEES 1 L, CLASSE A","Bouchées 24/29",1,"Unité",10.6998,"3502"]
[null,3527,"FIOLES ERLENMEYERS 50 ML CONIQUES","Etr. ouverture,Fishe",1,"Unités",3.621,"3527"]
[null,3697,"TETRAHYDROFURAN","ReagentPlus®, 99.0 %, contains 250 ppm BHT as inhibitor",2.5,"L",15.8202,"3697"]
[null,3726,"BOBINE ESSUYAGE MAXI MAINS BLANC","2 plis, blanche",1,"Unités",2.907,"3726"]
[null,3764,"ETHANOL ABSOLU","99,9 %, anhydre",10,"L",19.125,"3764"]
[null,3957,"SERINGUES HAMILTON 701 RN","10 µl,aiguille amovi",1,"Unité",26.01,"3957"]
[null,3985,"SERINGUES EN VERRE, AVEC CÖNE EN METAL ET RACCORD LUER-LOOCK","1 ml",1,"Unité",5.4366000000000003,"3985"]
[null,3987,"SERINGUES EN VERRE BOROSILICA-","3ml,Luer-Lock, 0,2ml",1,"Unité",5.8445999999999998,"3987"]
[null,3988,"SERINGUES HAMILTON 710 N","100 µl,aiguille fixe",1,"EA",40.820399999999999,"3988"]
[null,4016,"VALET BIBASE REVERSIBLE","En silicone 50-500ml",1,"Ex",13.055999999999999,"4016"]
[null,4027,"SERINGUES HAMILTON 7001 RN","1 µl, aiguille amovi",1,"EA",51.101999999999997,"4027"]
[null,4056,"SERINGUES HAMILTON 701 N","10 µl,aiguille fixe",1,"Unité",19.38,"4056"]
[null,4079,"AMMONIUM ACETATE","96,5 %",1,"KG",13.168200000000001,"4079"]
[null,4082,"DIISOPROPYLE OXYDE","RPE",1,"L",11.719799999999999,"4082"]
[null,4084,"BALLONS MONOCOLS RODES 100 ML","Rodage 29/32,fd rond",1,"Unités",4.0086000000000004,"4084"]
[null,4085,"BALLONS MONOCOLS RODES 250 ML","Rodage 29/32, fond rond",1,"Unités",5.7119999999999997,"4085"]
[null,4088,"FIOLES ERLENMEYER A COL LARGE 250 ML","En DURAN®, avec graduation ",1,"Unités",1.8972,"4088"]
[null,4089,"FIOLES ERLENMEYER A COL LARGE 500 ML ","En DURAN®, avec graduation ",1,"Unités",6.9462000000000002,"4089"]
[null,4090,"AMPOULES CYLINDRIQUES 250 ML","Clé téflon,rod.29/32",1,"Ex",94.329599999999999,"4090"]
[null,4092,"TUBES A ESSAIS EN VERRE BOROSILICATE","18x180mm,épais.1,2mm",100,"Unités",22.3992,"4092"]
[null,4220,"FIOLES A VIDE 250 ML","Verre borosilicaté",1,"Ex",5.9874000000000001,"4220"]
[null,4242,"SERINGUES HAMILTON 705 N","50 µl, aiguille fixe",1,"EA",28.56,"4242"]
[null,4250,"ALCOOL METHYLIQUE","Pour HPLC,usage clas",2.5,"L",121.38,"4250"]
[null,4265,"TUBES DE R.M.N. EN 10 MM","Précision",1,"Tu",20.2164,"4265"]
[null,4358,"PIPETTES PASTEUR 150 MM","Non stériles,non cot",250,"Unités",6.5789999999999997,"4358"]
[null,4360,"PIPETTES PASTEUR 230 MM 40011107541","Non stériles,non cotonnées",250,"Unités",6.5789999999999997,"4360"]
[null,4377,"DETERGENT DE LABORATOIRE","RBS 25",5,"L",46.705800000000004,"4377"]
[null,4406,"FIOLES JAUGEES 1 ML CLASSE A","7/16 bouchées",1,"Unités",13.1988,"4406"]
[null,4415,"BALLONS MONOCOLS RODES 50 ML","Rodage 29/32, fond rond",1,"Unité",5.2835999999999999,"4415"]
[null,4476,"FIOLES ERLENMEYER A COL LARGE 50 ML","En DURAN®, avec graduation ",1,"Unités",1.3158000000000001,"4476"]
[null,4515,"BLOUSES HOMMES EN COTON","Taille  2",1,"Unité",17.798999999999999,"4515"]
[null,4516,"2-PROPANOL","CHROMASOLV®, for HPLC, 99.9% ",1,"L",4.8959999999999999,"4516"]
[null,4517,"BLOUSES HOMME COTON","Taille 4",1,"Unit",17.798999999999999,"4517"]
[null,4518,"BLOUSE COTON HOMME","Taille 6",1,"Unit",25.5,"4518"]
[null,4519,"BALLONS BICOLS 100 ML","RC 14/23, RL 14/23",1,"Ex",10.863,"4519"]
[null,4569,"PARAFILM GRADE \"M\"","L 75 m, l 50 mm",1,"Unité",27.1218,"4569"]
[null,4592,"SPATULES / CUILLERES","Acier inox, 230mm",1,"Unités",5.9466000000000001,"4592"]
[null,4600,"BECHERS FORME BASSE 400 ML","Gradués, à bec",1,"Unités",14.076000000000001,"4600"]
[null,4601,"BECHERS FORME BASSE 1 LITRE","Gradués, à bec",1,"Unit",8.7720000000000002,"4601"]
[null,4602,"CRISTALLISOIRS 60 ML EN VERRE DURAN 50","Avec bec, 60 x 35 mm",1,"Unités",2.2644000000000002,"4602"]
[null,4603,"CRISTALLISOIRS 300 ML EN VERRE DURAN 50","Avec bec, 95x55 mm",1,"Unités",3.468,"4603"]
[null,4604,"ENTONNOIRS A TIGE COURTE, 60°","Diamètre 35 mm",1,"Unités",2.907,"4604"]
[null,4605,"ENTONNOIRS EN VERRE ROTILABO®","En verre sodocalcique. avec tige courte. angle 60°, diamètre 80 mm",1,"Unités",3.2742,"4605"]
[null,4607,"FIOLES A VIDE 500 ML","Verre borosilicaté",1,"Unité",11.7402,"4607"]
[null,4608,"FIOLES A VIDE 1 LITRE","Verre borosilicaté",1,"Unité",19.992000000000001,"4608"]
[null,4609,"FIOLES JAUGEES 250 ML CLASSE A","Bouchon plastique",1,"Unités",10.863,"4609"]
[null,4621,"ENTONNOIRS DE BUCHNER","Porcelaine, 125 mm",1,"Unité",20.553000000000001,"4621"]
[null,4622,"ENTONNOIRS DE BUCHNER","Porcelaine, 80 mm",1,"Unité",23.46,"4622"]
[null,4644,"BALLONS BICOLS 100 ML","RC 29/32, RL 19/26",1,"Ex",12.362399999999999,"4644"]
[null,4648,"CRISTALLISOIRS 150 ML EN VERRE DURAN 50","Avec bec, 80 x 45 mm",1,"Unités",3.2334000000000001,"4648"]
[null,4649,"EPROUVETTES GRADUEES 2 LITRES","Verre bor. div. 20ml",1,"Unité",30.895800000000001,"4649"]
[null,4650,"EPROUVETTES GRADUEES 10 ML CATEGORIES A","En verre borosilicaté 3.3, à graduation bleue ",1,"Unités",6.4463999999999997,"4650"]
[null,4658,"BALLONS FOND ROND, DURAN®, VERRE TRANSPARENT 50 ML","Rodage 14/23 ",1,"Unité",4.4268000000000001,"4658"]
[null,4659,"BALLONS MONOCOLS RODES 100 ML","Rodage 19/26,fond rond",1,"Unité",3.8658000000000001,"4659"]
[null,4674,"GANT NITRILE","taiile M",100,"Unit",11.067,"4674"]
[null,4768,"EPROUVETTES GRADUEES 100 ML","Verre bor. div. 1 ml",1,"Unités",3.3149999999999999,"4768"]
[null,4828,"CAPUCHONS EN CAOUTCHOUC POUR PIPETTES DE PRELEVEMENTS ","1 ml, vert",1,"Unités",0.4284,"4828"]
[null,4829,"CAPUCHONS  CAHOUTCHOUC PRÉLEVEMENT POUR PIPETTES ","2 ml, gris",1,"Unité",1.6422000000000001,"4829"]
[null,4830,"TUYAUX EN CAOUTCHOUC FEUILLE ANGLAISE","6 x 9 mm",5,"M",15.606,"4830"]
[null,4832,"TUYAU EN CAOUTCHOUC ROTILABO, POUR LE VIDE"," 6 x 16 mm, 5 mm d'épaisseur",5,"M",14.739000000000001,"4832"]
[null,4833,"TUYAU SILICONE VERSILIC®","6 x 9 mm",5,"M",9.18,"4833"]
[null,4878,"THERMOMETRE A ALCOOL","-20 °C / +110 °C",1,"Unité",5.0693999999999999,"4878"]
[null,4880,"FLACONS SIROP 30 ML (27)","Verre blanc, PP 28",156,"Unités",26.826000000000001,"4880"]
[null,4881,"FLACONS SIROP DE 30 ML (B 27)","Verre blanc,bague 28",1,"Unités",0.16320000000000001,"4881"]
[null,4882,"FLACONS PILULIERS EN VERRE BLANC 25 ML AVEC CAPE EN PE","Verre blanc, bague SC 30",1,"Unités",0.18360000000000001,"4882"]
[null,4883,"FLACONS RONDS STANDARDS 125 ML(572)","Verre blanc,D=30mm",1,"Unités",0.30599999999999999,"4883"]
[null,4885,"FLACONS ROND 2,5 ML (11968)PLAQUE","Verre blanc,col bas",360,"Unités",65.341200000000001,"4885"]
[null,4886,"FLACONS RONDS STAND 15 ML ( 167)","Verre blanc, PH 18",1,"Unités",0.29580000000000001,"4886"]
[null,4887,"FLACONS ROND 2,5 ML (11968)","Verre blanc,col bas",1,"Unités",0.1734,"4887"]
[null,4888,"FLACONS CARNETTE AVEC BOUCHONS","8 x 35, 1 ml",10,"Unités",0.45900000000000002,"4888"]
[null,4890,"FLACONS RONDS 15 ML (167)","Verre blanc, PP 28",216,"Unités",34.710599999999999,"4890"]
[null,4923,"BALLONS A FOND ROND 500 ML","Rodage 29/32",1,"Unités",6.375,"4923"]
[null,4944,"BECHERS FORME HAUTE 50 ML","Verre Duran, avec be",1,"Unités",0.66300000000000003,"4944"]
[null,4945,"BECHERS FORME HAUTE 100 ML","Gradués, à bec",1,"Unités",1.173,"4945"]
[null,4946,"GANT NITRILE","Taille large",100,"Unit",15.381600000000001,"4946"]
[null,4948,"GANT NITRILE NON POUDRÉ","XL",250,"Unités",29.07,"4948"]
[null,4949,"EPROUVETTES GRADUEES 250 ML","Verre bor. div. 2 ml",1,"Unités",5.5590000000000002,"4949"]
[null,4950,"RACCORDS DE REDUCTION EN VERRE RODES","Rodage femelle 19/26, rodage mâle 29/32",1,"Unité",5.9058000000000002,"4950"]
[null,5008,"TUYAU SILICONE VERSILIC®","8 x 12 mm",5,"M",20.808,"5008"]
[null,5013,"BOUCHONS A JUPE RABATTABLE (SEPTUM)","Diamètre 7,1 mm",10,"Unité",2.4990000000000001,"5013"]
[null,5014,"BOUCHONS A JUPE RABATTABLE(SEPTUM)","Diamètre 10,2 mm",10,"Unités",2.1827999999999999,"5014"]
[null,5015,"BOUCHONS A JUPE RABATTABLE(SEPTUM)","Diamètre 12,7 mm",10,"Unité",4.1003999999999996,"5015"]
[null,5016,"BOUCHONS A JUPE RABATTABLE","Diamètre 23,7 mm",10,"Unités",13.055999999999999,"5016"]
[null,5017,"BOUCHONS A JUPE RABATTABLE(SEPTUM)","Diamètre 19,4 mm",20,"Unités",14.433,"5017"]
[null,5031,"TUBES DE CULTURE EN VERRE","13mmx100mm,fond rond",100,"Unités",10.7814,"5031"]
[null,5043,"PASTETTES","3 ml",500,"Unités",6.681,"5043"]
[null,5044,"LIQUIPETTE (CAPILLAIRE)","6ml",10,"Ex",0.62219999999999998,"5044"]
[null,5050,"POIRE A PIPETTER STANDARD ROUGE","Diamère 5 à 8 mm",1,"Unité",2.8559999999999999,"5050"]
[null,5051,"POIRE A PIPETER UNIVERSEL ROUGE","Diamètre 3 à 11 mm",1,"Unité",2.8151999999999999,"5051"]
[null,5056,"BALLONS BICOLS 100 ML","RC 19/26, RL 14/23",1,"Ex",25.5,"5056"]
[null,5065,"PIPETTES JAUGEES 3 ML, CLASSE A"," 2 traits",1,"Unité",2.4378000000000002,"5065"]
[null,5095,"BECHERS FORME BASSE,  DURAN® 100 ML","Avec graduation et bec verseur",1,"Unités",0.63239999999999996,"5095"]
[null,5096,"BECHERS FORME BASSE, DURAN® 250 ML","Avec graduation et bec verseur",1,"Unités",0.98939999999999995,"5096"]
[null,5132,"AMPOULES CYLINDRIQUES 250 ML","Tub.lat,téflon,19/26",1,"Ex",49.786200000000001,"5132"]
[null,5136,"METHANOL","Pour HPLC",2.5,"L",6.0486000000000004,"5136"]
[null,5145,"BOUCHONS A JUPE RABATTABLE(SEPTUM)","Diamètre 14.9 mm",20,"Unités",10.954800000000001,"5145"]
[null,5166,"PISSETTES 500 ML ROTILABO","En LDPE souple, inco",1,"Unité",2.1827999999999999,"5166"]
[null,5173,"NOIX UNIVERSELLES","Serrage 2 à 16mm",1,"Unités",7.4766000000000004,"5173"]
[null,5270,"EPROUVETTES GRADUEES 25 ML CATEGORIE A","En verre borosilicaté 3.3, à graduation bleue ",1,"Unités",2.8763999999999998,"5270"]
[null,5296,"BOBINE ESSUIE MAINS BLANC","1 pli, 24 cm x 300 m, 26 g",1,"Unité",7.7214,"5296"]
[null,5511,"TUBES DE BOREL","40 x 85 mm",1,"Unité",3.8046000000000002,"5511"]
[null,5562,"PISSETTES 250 ML ROTILABO","En LDPE souple, inco",1,"Unité",1.224,"5562"]
[null,5575,"BALLONS MONOCOLS RODES 100 ML","Rodage 29/32,fd plat",1,"Unité",4.4573999999999998,"5575"]
[null,5576,"PISSETTES 1 LITRE ROTILABO","En LDPE souple, inco",1,"Unité",2.0297999999999998,"5576"]
[null,5597,"ACETONITRILE","H.P.L.C.",2.5,"L",18.2376,"5597"]
[null,5608,"TUBE A ESSAI EN VERRE SODOCALCIQUE","12 x 120 mm,épais.0,5mm",10,"Unités",1.1220000000000001,"5608"]
[null,5658,"SERINGUES A USAGE UNIQUE","10 ml, raccord luer",100,"Unités",5.7935999999999996,"5658"]
[null,5799,"FIOLES ERLENMEYER A COL LARGE 100 ML","En DURAN®, avec graduation ",1,"Unités",1.7645999999999999,"5799"]
[null,5836,"GEL DE SILICE 60 POUR LA C.C","230-400 mesh ASTM",1,"KG",31.11,"5836"]
[null,5871,"CRISTALLISOIRS A CORDELINE","Verre de chim.,125ml",1,"Unité",4.8041999999999998,"5871"]
[null,5905,"PINCES EN BOIS POUR TUBES A ESSAI","250 mm",1,"Unités",2.8559999999999999,"5905"]
[null,5930,"HEXANE","H.P.L.C.",2.5,"L",14.688000000000001,"5930"]
[null,5939,"FLACONS COL CARNETTE 3 ML ( 6117)","14.25 x 35",288,"Unités",32.956200000000003,"5939"]
[null,5940,"FLACONS COL CARNETTE 5ML(6117)","14.25 x 48, 5",288,"Unités",28.315200000000001,"5940"]
[null,5987,"TUBE A ESSAIS EN VERRE SODOCALCIQUE","180 X 18 mm, 0,5-0,6",250,"Unités",30.406199999999998,"5987"]
[null,5988,"FIOLES A VIDE 100 ML","Verre borosilicaté",1,"Ex",7.7724000000000002,"5988"]
[null,5991,"AMPOULES A DECANTER 1 LITRE","Sphéri.,téflon,29/32",1,"Ex",64.688400000000001,"5991"]
[null,5992,"AMPOULES A DECANTER 500 ML","Sphérque,clé verre , 24/29",1,"Unité",76.479600000000005,"5992"]
[null,5997,"LUNETTES DE PROTECTION","Polycarbonate",1,"EA",7.14,"5997"]
[null,6018,"ETHER DIETHYLIQUE","Contains BHT as inibitor, puriss. p.a;, ACS reagent, reag. ISO, reag. Ph. Eur., 99.8 %",2.5,"L",9.69,"6018"]
[null,6058,"ENTONNOIRS A TIGE COURTE, 60°","Diamètre 150 mm",1,"Ex",10.5366,"6058"]
[null,6092,"BUTANOL-1","RP Normapur pou anal",1,"L",5.8242000000000003,"6092"]
[null,6093,"BECHERS FORME HAUTE 1 LITRE","Gradués, à bec",1,"Unité",5.5998000000000001,"6093"]
[null,6094,"BALLONS TRICOLS 250 ML","RC 29/32, RL 19/26",1,"Ba",31.099799999999998,"6094"]
[null,6112,"FLACONS RONDS STANDARDS 500 ML(9642)","Verre blanc,VS40 LO",1,"Unités",1.53,"6112"]
[null,6117,"BOUCHONS A AILETTES EN POLYETHYLENE","Pour flacons 3/5 ml",10,"Unités",5.0999999999999997E-2,"6117"]
[null,6203,"ENTONNOIRS CYLINDRIQUES 250 ML","Robinet verre,gradué",1,"Ex",29.274000000000001,"6203"]
[null,6204,"BALLONS TRICOLS 250 ML","RC 29/32, RL 19/26",1,"Ba",31.099799999999998,"6204"]
[null,6213,"BECHERS FORME HAUTE 400 ML","Gradués, à bec",1,"Ex",3.06,"6213"]
[null,6265,"SUBA SEAL STANDARD TURNOVER","N° 9, diam. 6,5 mm",10,"Ex",2.3357999999999999,"6265"]
[null,6266,"SUBA SEAL STANDARD TURNOVER","N° 25, diam. 12,5 mm",10,"Ex",3.1110000000000002,"6266"]
[null,6267,"SUBA SEAL STANDARD TURNOVER","N° 37, diam. 17,5 mm",10,"Ex",5.4467999999999996,"6267"]
[null,6268,"SUBA SEAL STANDARD TURNOVER","N° 49, diam. 22 mm",10,"Ex",8.16,"6268"]
[null,6269,"SUBA SEAL STANDARD TURNOVER","N° 57, diam. 25,5 mm",10,"Ex",10.8834,"6269"]
[null,6274,"MICROSPATULES DOUBLES","En acier, 130mm, 5mm",1,"Unité",1.1628000000000001,"6274"]
[null,6279,"BARREAUX AIMANTES","25 x 6 mm",1,"Unités",1.4994000000000001,"6279"]
[null,6280,"BARREAUX AIMANTES","30 x 6 mm",1,"Unités",1.7136,"6280"]
[null,6281,"BARREAUX MAGNETIQUES ROTILABO","45 x 8 mm, cylindriques",1,"Unités",2.0655000000000001,"6281"]
[null,6282,"BARREAUX MAGNETIQUES ROTILABO","12 x 4,5 mm, cylindriques",1,"Unités",1.5606,"6282"]
[null,6283,"BARREAUX AIMANTES","15 x 4,5 mm",1,"Unités",1.0506,"6283"]
[null,6284,"BARREAUX AIMANTES","13 x 8 mm",1,"Unité",1.173,"6284"]
[null,6349,"TUYAU GOMME-SOUPLE, CAOUTCHOUC","Pour le vide, 8 x18 mm",5,"M",17.1768,"6349"]
[null,6373,"PINCETTE","Droite,arrondie,105 mm",1,"Unité",2.3868,"6373"]
[null,6405,"METHANOL","CHROMASOLV®, for HPLC, 99.9%, ",1,"L-R",3.6414,"6405"]
[null,6466," ETHER DE PETROLE ( 8018563727)","Puriss., low boiling point hydrogen treated naphtha, meets analytical specificatiionof DAB, bpmin. 75 % 40-60°C",5,"L",9.9551999999999996,"6466"]
[null,6467,"FIOLES JAUGEES 5 ML CLASSE A, BOUCHEES PLASTIQUE","10/19, verre transparent",1,"Unités",6.0179999999999998,"6467"]
[null,6609,"ENTONNOIRS EN VERRE 100 MM","Tige courte, 60 °",1,"Unités",6.8544,"6609"]
[null,6612,"TAMIS MOLECULAIRE 3 A",null,750,"GR",24.48,"6612"]
[null,6725,"CHLOROFORME","Pure pour synthèses",5,"L",12.9642,"6725"]
[null,6809,"BECHERS FORME HAUTE 600 ML","Gradués, à bec",1,"Unités",1.6728000000000001,"6809"]
[null,6822,"FIOLES JAUGEES 200 ML CLASSE A","Bouchée plastique, 24-29 mm",1,"Unité",6.12,"6822"]
[null,6939,"BOBINE ESSUYAGE BLANC WS, 1500 FORMATS","2 plis, 24 x 30 cm, 2 x 20 g",1,"Unité",15.147,"6939"]
[null,7000,"AMPOULES A DECANTER 250 ML","Sphér.,téflon,19/26",1,"Unité",112.6896,"7000"]
[null,7141,"TAMPON CONCENTRE TITRISOL","pH 4,00 +ou- 0,02",1,"Unité",3.6006,"7141"]
[null,7193,"BECHERS FORME HAUTE 150 ML","Gradués, à bec",1,"Ex",2.9580000000000002,"7193"]
[null,7218,"EPROUVETTES GRADUEES 1 LITRE","Verre bor. div. 10ml",1,"Unités",14.2392,"7218"]
[null,7331,"SERINGUES HAMILTON,700 SERIES, SPECIAL NEEDLE ","Volume 50 µl, needle size 22s ga",1,"EA",29.58,"7331"]
[null,7371,"SERINGUES A USAGE UNIQUE","20 ml",80,"Unités",7.242,"7371"]
[null,7393,"ETHANOL ABSOLU","Pour  HPLC",2.5,"L",8.3946000000000005,"7393"]
[null,7443,"GOUPILLONS POUR TUBES A ESSAIS","Bout rétourné, 30 mm",1,"Unités",1.2749999999999999,"7443"]
[null,7504,"SERINGUES HAMILTON 702 RN","25 µl,aiguille amovi",1,"Unité",28.56,"7504"]
[null,7505,"SERINGUES HAMILTON 705 RN","50 µl, aiguille amovible",1,"Unité",43.655999999999999,"7505"]
[null,7624,"CRISTALLISOIRS A CORDELINE","Verre de chimie,10 l",1,"Ex",29.345400000000001,"7624"]
[null,7625,"CRISTALLISOIRS A CORDELINE","Verre de chimie, 3 l",1,"Unité",13.872,"7625"]
[null,7626,"ENTONNOIRS A TIGE COURTE, 60°","Diamètre 45 mm",1,"Unité",3.5394000000000001,"7626"]
[null,7692,"TERT-BUTYLMETHYLETHER","RE",5,"L",16.309799999999999,"7692"]
[null,7735,"AIGUILLE A USAGE UNIQUE STERICAN®,  BISEAU LONG","Bleu, 0,60 x 80 mm, 23 G",100,"Unités",7.2012,"7735"]
[null,7961,"BECHERS FORME BASSE, DURAN® 25 ML","Avec graduation et bec verseur",1,"Unités",1.071,"7961"]
[null,7963,"BECHERS FORME BASSE, DURAN® 50 ML","Avec graduation et bec verseur",1,"Unités",5.508,"7963"]
[null,7989,"FLACONS SIROP 1 LITRE (27)","Verre blanc, PP 28",1,"Unités",1.2444,"7989"]
[null,8003,"BECHERS FORME HAUTE 250 ML","Gradués, à bec",1,"Unités",1.071,"8003"]
[null,8112,"GOUPILLONS POUR TUBES A HÉMOLYSE","Bout rétourné, 80 x 120",1,"Unités",1.9481999999999999,"8112"]
[null,8114,"GOUPILLONS POUR LITRES","Manche en fil torsad",1,"Unité",3.2334000000000001,"8114"]
[null,8119,"BECHERS FORME BASSE 150 ML","Gradués, à bec verse",1,"Unités",4.4165999999999999,"8119"]
[null,8190,"CONES POUR MICROPIPETTES","201-1000 µl, bleu",1000,"Unités",6.2220000000000004,"8190"]
[null,8201,"SERINGUES A USAGE UNIQUE","5 ml, raccord luer ",100,"Unités",4.0187999999999997,"8201"]
[null,8292,"CRISTALLISOIRS 900 ML EN VERRE DURAN 50","Avec bec, 140 x 75 mm",1,"Unité",8.7311999999999994,"8292"]
[null,8388,"ETHER DIETHYLIQUE(RES. 8018563727)","Laboratory Reagent, 99.5 %",5,"L",19.38,"8388"]
[null,8542,"ACETONE","Analytical Reagent",2.5,"L-D",8.16,"8542"]
[null,8553,"METHANOL","Pour analyses anhydres",1,"L",3.6821999999999999,"8553"]
[null,8589,"DICHLOROMETHANE","CHROMASOLV®, for HPLC, 99.8%, contains amylen as stabilizer ",2.5,"L",10.0572,"8589"]
[null,8621,"GOUPILLONS POUR TUBES A ESSAIS","110 x 18 mm, bout rétourné",1,"Unités",1.9787999999999999,"8621"]
[null,8637,"BALLONS BICOLS 500 ML","RC 24/29, RL 14/23",1,"Ba",17.992799999999999,"8637"]
[null,8638,"BALLONS BICOLS NON RODES 1 L","Fd rond,CC 35,CL 25",1,"Ba",21.613800000000001,"8638"]
[null,8642,"TETES DE DISTILLATION",null,1,"Ex",61.302,"8642"]
[null,8644,"BECHERS FORME BASSE 25 ML","Gradués, à bec",1,"Unités",3.3660000000000001,"8644"]
[null,8645,"BECHERS FORME BASSE 50 ML","Gradués, avec bec",1,"Unités",1.2444,"8645"]
[null,8646,"BECHERS FORME BASSE 100 ML","Gradués, à bec",1,"Unités",7.7826000000000004,"8646"]
[null,8647,"BECHERS FORME BASSE 150 ML","Gradués, à bec",1,"Unités",1.7544,"8647"]
[null,8648,"BECHERS FORME BASSE 250 ML","Gradués, à bec",1,"Unité",1.6728000000000001,"8648"]
[null,8649,"BECHERS FORME BASSE 400 ML","Gradués,à bec,80x110",1,"Unités",1.1424000000000001,"8649"]
[null,8650,"BECHERS FORME BASSE 1 LITRE","Gradués, à bec",1,"Unité",6.8544,"8650"]
[null,8651,"BECHERS FORME HAUTE 100 ML","Gradués, à bec",1,"Unités",0.69359999999999999,"8651"]
[null,8652,"BECHERS FORME HAUTE 150 ML","Gradués, à bec",1,"Unité",1.5911999999999999,"8652"]
[null,8653,"BECHERS FORME HAUTE 250 ML","Gradués, à bec",1,"Unités",2.3969999999999998,"8653"]
[null,8654,"BECHERS FORME HAUTE 400 ML","Gradués, à bec",1,"Unité",2.3460000000000001,"8654"]
[null,8655,"BECHERS FORME HAUTE 600 ML","Gradués, à bec",1,"Unités",1.53,"8655"]
[null,8656,"BECHERS FORME HAUTE 1 LITRE","Gradués, à bec",1,"Unité",4.0289999999999999,"8656"]
[null,8661,"FIOLES ERLENMEYER A COL LAGE 100 ML","En DURAN®, avec graduation ",1,"Unité",2.0297999999999998,"8661"]
[null,8662,"FIOLES ERLENMEYER 50 ML ROTILABO","Col large",1,"Unités",1.3974,"8662"]
[null,8663,"FIOLES ERLENMEYERS 250 ML","Large ouverture",1,"Unités",2.9580000000000002,"8663"]
[null,8664,"FIOLES ERLENMEYERS 500 ML","Large ouverture",1,"Unité",1.6115999999999999,"8664"]
[null,8688,"FIOLES JAUGEES 100 ML,CLASSE A","Bouchées 14/23",1,"Unités",4.2839999999999998,"8688"]
[null,8695,"EPROUVETTES GRADUEES 50 ML CATEGORIE A","En verre borosilicaté 3.3? à graduation bleue ",1,"Unités",6.7625999999999999,"8695"]
[null,8721,"EXTRACTEURS POUR BARREAUX AIMANTES","PTFE, 350 x 8 mm",1,"Unité",4.2839999999999998,"8721"]
[null,8727,"RACCORDS A OLIVE","RIN 14 M",1,"Ex",5.4774000000000003,"8727"]
[null,8771,"CRISTALLISOIRS 2 L EN VERRE DURAN 50","Avec bec, 190x90 mm",1,"Unité",40.188000000000002,"8771"]
[null,8811,"BALLONS A FOND ROND 1 LITRE","Verre Duran, 29/32",1,"Unité",9.0882000000000005,"8811"]
[null,8817,"BALLONS BICOLS 250 ML","RC 29/32, RL 19/26",1,"Unité",45.2166,"8817"]
[null,8818,"BALLONS BICOLS 500 ML","RC 29/32, RL 19/26",1,"Unité",23.327400000000001,"8818"]
[null,8871,"SUPPORT ELEVATEUR","20x20 cm, 80 kg max",1,"Unité",44.645400000000002,"8871"]
[null,8872,"RACCORDS DE REDUCTION","Rodage femelle  29/32, rodage mâle 19/26",1,"Unité",6.1505999999999998,"8872"]
[null,8914,"THERMOMÈTRE RODAGE PRÉCISION L 375 MM ","-10 à +250",1,"Unit",32.895000000000003,"8914"]
[null,9057,"BOUCHONS EN POLYETHELENE","Rodage 29/32",1,"Unités",1.377,"9057"]
[null,9058,"BOUCHONS EN POLYETHYLENE","Rodage 19/26",1,"Unités",0.58140000000000003,"9058"]
[null,9089,"ACETONITRILE","CHROMASOLV® \n gradient grade, for HPLC, 99.9 %",2.5,"L-D",18.2376,"9089"]
[null,9214,"MASQUES ANTI POUSSIERES ","Protection FFP1 de 3M N° 8710",1,"Unités",0.7752,"9214"]
[null,9236,"TOLUENE","RE puro",5,"L",13.7088,"9236"]
[null,9264,"FIOLES JAUGEES 10 ML CLASSE A BOUCHEES PLASTIQUES","10/19, verre transparent",1,"Unités",2.7948,"9264"]
[null,9293,"BOUCHONS EN POLYETHYLENE","Rodage 24/29",1,"Unités",0.6018,"9293"]
[null,9314,"BOITES DE PETRI STERILES 90 X 15 MM","Sans érgot,polystyre",850,"Unités",56.416200000000003,"9314"]
[null,9412,"SERINGUES HAMILTON 710 SNR","100 microlitres",1,"EA",40.820399999999999,"9412"]
[null,9422,"PIPETTES PASTEUR 270 MM","Stériles, bout cotonné",250,"Unités",14.6982,"9422"]
[null,9633,"METHANOL","Certified, pour HPLC gradient grade",2.5,"L",8.0274000000000001,"9633"]
[null,9637,"LAMES LAVEES, DEGRAISSEES","76 x 26 mm, bruts",50,"Unités",3.0293999999999999,"9637"]
[null,9641,"FLACONS RONDS STANDARDS 1 L (9642)","Verre blanc, BG40 LO",1,"Unités",1.1220000000000001,"9641"]
[null,9642,"CAPSULES BAKELITE NOIRE","BG40 jointe TS",1,"Unité",0.30599999999999999,"9642"]
[null,9860,"DEUTERIUM OXIDE",0.998,10,"ML",9.18,"9860"]
[null,9861,"DIMETHYLE SULFOXYDE D6","99,80 %",10,"ML",10.71,"9861"]
[null,9864,"TETRAMETHYLSILANE",null,100,"ML",65.157600000000002,"9864"]
[null,9865,"TETRAMETHYLSILANE",null,25,"ML",13.362,"9865"]
[null,9870,"FLACONS SIROP 60 ML(27)","Verre blanc, PP 28",1,"Unités",0.153,"9870"]
[null,9871,"FLACONS SIROPS 60 ML (27)","Verre blanc, PP 28",127,"Unités",20.655000000000001,"9871"]
[null,9917,"FLACONS RONDS STAND10 ML ( 167)","Verre blanc, PH18 EO",1,"Unités",0.16320000000000001,"9917"]
[null,9918,"FLACONS RONDS 10 ML (167)","Verre blanc, PP 28",195,"Unités",31.824000000000002,"9918"]
[null,9977,"BOUCHONS A JUPE RABATTABLE","Diamètre 30.7 mm",5,"Unités",18.482399999999998,"9977"]
[null,10124,"TUYAU EN CHLORURE DE POLYVINYLE CRISTAL","Renforcé, 10 x 16 mm",1,"M",3.4782000000000002,"10124"]
[null,10160,"PINCES POUR RODAGES CONIQUES(CLIPS)","Rodage 14/23, jaune",1,"Unités",1.173,"10160"]
[null,10161,"PINCES POUR RODAGES CONIQUES(CLIPS)","Rodage 19/26, bleu",1,"Unités",2.4683999999999999,"10161"]
[null,10162,"PINCES POUR RODAGES CONIQUES(CLIPS)","Rodage 24/29, vert",1,"Unités",3.4782000000000002,"10162"]
[null,10163,"PINCES POUR RODAGES CONIQUES(CLIPS)","Rodage 29/32, rouge",1,"Unités",4.2737999999999996,"10163"]
[null,10173,"COTON CARDE ECRU","Décontaminé",500,"GR",6.4055999999999997,"10173"]
[null,10357,"GANTS NEOPRENE","Taille  9",1,"Paires",9.2105999999999995,"10357"]
[null,10640,"METHANOL","Pour HPLC",2.5,"L",5.61,"10640"]
[null,10743,"BARREAUX MAGNETIQUES ROTILABO® ELLIPTIQUE","10 x 20 mm",1,"Unité",2.5499999999999998,"10743"]
[null,10870,"SERINGUES EN VERRE BOROSILICA-","5ml,Luer-Lock, 0,2ml",1,"Unité",5.8445999999999998,"10870"]
[null,10871,"SERINGUES EN VERRE 10 ML, AVEC CONE EN METAL ET RACCORD LUER-LOCK","Graduation 0,2ml",1,"Unité",9.8225999999999996,"10871"]
[null,10872,"SERINGUES EN VERRE BOROSILICATE","20 ml, Luer-Lock, 1 ml",1,"Unité",12.413399999999999,"10872"]
[null,10873,"SERINGUES EN VERRE BOROSILICA-","50ml, Luer-Lock, 1ml",1,"Unité",24.530999999999999,"10873"]
[null,11072,"PINCES POUR RODAGES CONIQUES(CLIPS)","Rodage 10/29, vert",1,"Unités",3.3353999999999999,"11072"]
[null,11084,"CONES EN CAOUTCHOUC D 10/22- 55/85 MM","Série de 7 cônes",1,"Set",15.198,"11084"]
[null,11300,"LAMELLES COUVRE-OBJETS CARREES","18x18 mm,.13 à.17 mm",1000,"Unités",9.9347999999999992,"11300"]
[null,11330,"FLACONS SIROP 100 ML(27)","Verre blanc, PP 28",1,"Unité",0.20399999999999999,"11330"]
[null,11651,"SERINGUES EN VERRE BOROSILICA-","2 ml, Luer-Lock",1,"Unité",6.5279999999999996,"11651"]
[null,11832,"BALLONS  A GAZ ROTILABO®","coloris assortis",100,"Unités",5.5590000000000002,"11832"]
[null,11842,"BARREAUX AIMANTES OVOIDES","15 x 30 mm",1,"Unité",1.4177999999999999,"11842"]
[null,11961,"PIPETTES JAUGEES 0.5 ML, CLASSE AS","2 traits",1,"Unité",4.2636000000000003,"11961"]
[null,11963,"PIPETTES GRADUEES 5ML CLASSE B","2022-01-20",1,"Unité",5.0999999999999996,"11963"]
[null,11968,"CAPSULES BAKELITE NOIRE","PO D.13 mm TS/Noir",1,"Unité",0.12239999999999999,"11968"]
[null,12096,"BOUCHONS RODES","En verre 24/29",1,"Ex",1.4688000000000001,"12096"]
[null,12097,"SODIUM CHLORURE","Technical",5,"KG",9.3941999999999997,"12097"]
[null,12102,"FIOLES JAUGEES 2 ML CLASSE A","7/1, verre Duran",1,"Unités",14.076000000000001,"12102"]
[null,12342,"ALCOOL ETHYLIQUE","Anhydre, RS HPLC",1,"L",5.1204000000000001,"12342"]
[null,12454,"SERINGUES A USAGE UNIQUE INJECT®-F","1 ml, graduation 0.01 ml",100,"Unités",7.548,"12454"]
[null,12495,"BLOUSES HOMMES EN COTON","Taille 5",1,"Unité",25.5,"12495"]
[null,12587,"MASQUE ANTI-ODEUR","Couche filtrante spé",1,"Unités",6.12,"12587"]
[null,12737,"BOUCHONS EN VERRE CLAIR A TETE FORME HAUTE","Rodage 29/32",1,"Unités",1.8053999999999999,"12737"]
[null,12800,"TUBES A HEMOLYSE EN VERRE DE CHIMIE","5 ml,13x75mm 0,5-0,6",500,"Unités",15.7182,"12800"]
[null,12892,"GANTS NEOPRENE","Taille 7 ",1,"Paires",9.2105999999999995,"12892"]
[null,12960,"RACCORDS DE REDUCTION","En DURAN®,rodage femelle 29/32, rodage mâle 14/23",1,"Unité",7.0788000000000002,"12960"]
[null,12972,"CAPSULE DE PESEE A USAGE UNIQUE","En aluminium,52 ml, 73 x 20 mm",100,"Unités",5.2325999999999997,"12972"]
[null,12997,"CONES POUR MICROPIPETTES","1 à 200 µl, jaune",1000,"Unités",5.0999999999999996,"12997"]
[null,13153,"ETHANOL ABSOLU","CHROMASOLV®, absolute, for HPLC, sales not in Germany, 99.8%, ",2.5,"L-D",35.750999999999998,"13153"]
[null,13211,"BARREAUX MAGNETIQUES ROTILABO® ELLIPTIQUE","20 x 40 mm",1,"Unité",5.9771999999999998,"13211"]
[null,13245,"SERINGUES A USAGE UNIQUE","2 ml, raccord luer",100,"Unités",2.7846000000000002,"13245"]
[null,13430,"PIPETTES JAUGEES 2 ML, CLASSE AS","2 traits",1,"Unité",5.9568000000000003,"13430"]
[null,13435,"FIOLES JAUGEES 50 ML","14/23, bouchées plas",1,"Unités",3.9371999999999998,"13435"]
[null,13819,"FIOLES ERLENMEYER  A COL LARGE 1000 ML","En DURAN®, avec graduation ",1,"Unité",10.302,"13819"]
[null,13973,"FIOLES JAUGEES 25 ML, CLASSE A","Bouchées 10/19",1,"Unités",5.6406000000000001,"13973"]
[null,14023,"EAU ","RS H.P.L.C., Plus",1,"L",4.3962000000000003,"14023"]
[null,14159,"BOUCHONS EN VERRE CLAIR A TETE FORME HAUTE","Rodage 19/26",1,"Unités",1.3056000000000001,"14159"]
[null,14248,"PIPETTES JAUGEES 1 ML, CLASSE AS","2 traits",1,"Unités",2.1726000000000001,"14248"]
[null,14249,"PIPETTES JAUGEES 5 ML, CLASSE B","1 trait",1,"Unités",2.4990000000000001,"14249"]
[null,14250,"PIPETTES JAUGEES 10 ML, CLASSE A","Sans boule, 2 traits",1,"Unités",9.3941999999999997,"14250"]
[null,14251,"PIPETTES JAUGEES 20 ML, CLASSE A","2 traits",1,"Unités",10.455,"14251"]
[null,14252,"PIPETTES JAUGEES 25 ML, CLASSE AS","2 traits",1,"Unité",4.4165999999999999,"14252"]
[null,14513,"AIGUILLE A USAGE UNIQUE STERICAN®","Vert, 0,80 x 40 mm, biseau long, 21 G",100,"Unités",4.7939999999999996,"14513"]
[null,15410,"GANTS D'EXAMEN LATEX","Non poudrés, T 6/7",100,"Unités",12.1686,"15410"]
[null,15411,"GANTS D'EXAMEN LATEX","Non poudrés, T 7/8",100,"Unités",12.1686,"15411"]
[null,15412,"GANTS D'EXAMEN LATEX","Non poudrés, T 8/9",100,"Unités",12.1686,"15412"]
[null,15482,"BLOUSE LABORATOIRE COTON","T S",1,"Unité",18.87,"15482"]
[null,16945,"AIGUILLE  A USAGE UNIQUE VERTELONGUE","G21 ,0,8 x 120 mm, l-lock",100,"Unités",16.422000000000001,"16945"]
[null,17370,"AIGUILLES TERUMO ROSE"," fuschia 40 x 1,2 mm, G18,",100,"Unités",3.0497999999999998,"17370"]
[null,19202,"BOUCHON ETANCHE POUR FLACON COL LARGE","38 mm",1,"Unités",0.28560000000000002,"19202"]
[null,21210,"BLOUSE DAMES ET HOMMES ","XS",1,"Unité",24.5412,"21210"]
[null,21500,"ETHANOL 96 %","molleculaire",500,"ML",26.01,"21500"]
[null,22730,"TUBE HEMOLYSE PP¨","13 x 75 mm, NST",2000,"Unités",31.089600000000001,"22730"]
[null,22731,"TUBE À HEMOLYSE PP",null,1000,"unit",13.872,"22731"]
[null,22783,"LUNETTES ","verte",1,"Unité",2.9784000000000002,"22783"]
[null,23651,"HUILE MINERALE IVP100+","Pour pompe primaire",5,"L",51,"23651"]
[null,26518,"BECHER PP GRADUÉ BLEU","500ml",10,"Ex",45.441000000000003,"26518"]

{"sheet":"FE2","index":5,"n_rows":13,"n_cols":4,"rows_kept":13,"cut":false,"hidden":true,"merged":[]}
[null,null,"Critère"]
[null,null,"Nom Equipe"]
[null,null,{"$f":"\"*\" & D4 & \"*\"","v":"*mediter*"}]
[null,null,"Rechercher un mot ou une partie de mot","mediter"]
[]
[]
[]
[]
[]
[null,"N° Client","Nom Equipe","Responsable Equipe"]
[null,"214 - 1","CENTRALE MEDITERRANEE","Arnaud TREUVEY"]
[null,"214 - 2","CENTRALE MEDITERRANEE","Arnaud TREUVEY"]
[null,"214 - 3","CENTRALE MEDITERRANEE","Mireille ARGEME"]

{"sheet":"ADMIN","index":6,"n_rows":31,"n_cols":15,"rows_kept":31,"cut":false,"hidden":true,"merged":[]}
[null,null,null,null,null,null,null,"Avant vol ordi : vmonn"]
[null,"Tab_Users",null,null,null,null,null,null,null,null,null,null,null,null,"Nom du fichier XLTM (MODELE)"]
[null,"Onglets","Non Admin","arnaud","INSPE - YT","Yvan","COXE Catherine","Valérie",null,null,null,null,null,null,"COMMANDES-Magasin.xltm"]
[null,"Localisation","Non Admin","Bureau","Yvan (Bureau)","Yvan (Maison)","Cathy","Valérie Amu"]
[null,"MENU","x","x","x","x","x","x"]
[null,"SAISIE",null,"x","x","x",null,null,null,null,null,null,null,null,"Site internet"]
[null,"CLIENTS",null,"x","x","x","x","x",null,null,null,null,null,null,"http://fr-chimie.univ-amu.fr/test/wp-content/uploads/COMMANDES-Magasin.xltm"]
[null,"PRODUITS",null,"x","x","x","x","x"]
[null,"FE",null,"x","x","x"]
[null,"FE2",null,"x","x","x",null,null,null,null,null,null,null,null,"Ancien chemin"]
[null,"ADMIN",null,"x","x","x",null,null,null,null,null,null,null,null,"http://fr-chimie.univ-amu.fr/services02.html"]
[null,"RECUP",null,"x","x","x"]
[null,"MAIL",null,"x","x","x",null,null,null,null,null,null,null,"Test","Administrateur"]
[null,null,null,null,null,null,null,null,null,null,null,null,null,"Résultat","Admin"]
[null,null,null,null,null,null,null,null,null,null,null,null,null,"Texte","Vous êtes ADMINISTRATEUR du fichier"]
[null,"Tab_Importation",null,null,null,null,null,null,null,null,null,null,null,"Affichage",{"$f":"IF(O14=\"Admin\",O15,\"\")","v":"Vous êtes ADMINISTRATEUR du fichier"}]
[null,"Ou","NomFichier"]
[null,"Source (Ou se trouvent les requetes)","PQ_Requetes.xlsx",null,null,null,null,null,null,null,null,null,null,null,"Actualité du site WEB"]
[null,"Destination (Celui-ci)","PQ_ADMIN - COMMANDES-Magasin.xlsm",null,null,null,null,null,null,null,null,null,null,null,"https://fr-chimie.univ-amu.fr/index.php/magasin-et-dechets/"]
[]
[null,"Tab_SuppOng"]
[null,"Onglets à supprimer",null,null,null,null,null,null,null,null,null,null,null,"Test","Chemin du fichier en cours + définition des chemins PQ"]
[null,"SAISIE",null,null,null,null,null,null,null,null,null,null,null,"Chemin Long",{"$f":"CELL(\"nomfichier\")","v":"C:\\Users\\Valérie\\Documents\\0_PRO\\1_ADMIN\\1_MAGASIN\\2_COMMANDE EXCEL\\NEW\\[PQ_ADMIN - COMMANDES-Magasin.xlsm]MENU"}]
[null,"CLIENTS",null,null,null,null,null,null,null,null,null,null,null,"Recherche [",{"$f":"SEARCH(\"[\",O23,1)","v":73}]
[null,"PRODUITS",null,null,null,null,null,null,null,null,null,null,null,"Chemin Court",{"$f":"LEFT(O23,O24-1)","v":"C:\\Users\\Valérie\\Documents\\0_PRO\\1_ADMIN\\1_MAGASIN\\2_COMMANDE EXCEL\\NEW\\"}]
[null,"FE"]
[null,"FE2",null,null,null,null,null,null,null,null,null,null,null,"Nom fichier Client","Export_CLIENTS.xlsx"]
[null,"ADMIN",null,null,null,null,null,null,null,null,null,null,null,"Chemin PQ Client",{"$f":"O25&O27","v":"C:\\Users\\Valérie\\Documents\\0_PRO\\1_ADMIN\\1_MAGASIN\\2_COMMANDE EXCEL\\NEW\\Export_CLIENTS.xlsx"}]
[null,"RECUP"]
[null,null,null,null,null,null,null,null,null,null,null,null,null,"Nom fichier Produit","Export_PRODUITS.xlsx"]
[null,null,null,null,null,null,null,null,null,null,null,null,null,"Chemin PQ Produit",{"$f":"O25&O30","v":"C:\\Users\\Valérie\\Documents\\0_PRO\\1_ADMIN\\1_MAGASIN\\2_COMMANDE EXCEL\\NEW\\Export_PRODUITS.xlsx"}]

{"sheet":"RECUP","index":7,"n_rows":124,"n_cols":1,"rows_kept":124,"cut":false,"hidden":true,"merged":[]}
["Fédération Sciences Chimiques Marseille"]
["Fédération Sciences Chimiques Marseille"]
["UAR 1739"]
["Afficher/masquer la navigation "]
["UAR 1739"]
["Annuaire"]
["Présentation de la FSCM"]
["Organigramme"]
["Services communs"]
["Chiropole"]
["CP2M"]
["CRCMM"]
["Magasin & Déchets"]
["PRATIM"]
["SCSV"]
["Spectropole"]
["Diffusion scientifique"]
["Production scientifique"]
["Publications-FSCM"]
["Publications-Spectropole"]
["Animations grand public"]
["Evénements"]
["Stages et visites"]
["Ateliers"]
["Conférences"]
["Formations"]
["Espace Membre"]
["Magasin & Déchets"]
["Accueil"]
["Magasin & Déchets"]
["SCPML / SRED"]
["Le SCPML centralise les commandes de solvants et de consommables pour la chimie et la biologie. Il est ouvert aux laboratoires des différents sites d'Aix-Marseille Université. Le SRED est un service de gestion des déchets chimiques et biologiques. Il n'est ouvert qu'aux laboratoires du campus St Jérôme d'Aix-Marseille Université."]
["¤ Service Commun Produits et Matériels pour Laboratoires (SCPML) "]
["¤ Service Récupération et Evacuation des Déchets (SRED)"]
[]
["Service Commun Produits et de Matériels de Laboratoire (SCPML)"]
["Horaires d'ouverture au public :"]
["- 9h - 12h : retraits des produits et du matériel de laboratoire."]
["- 14h - 16h : demandes administratives et retours de commandes."]
[]
["Commandes de produits et de matériels de laboratoire"]
["Préalablement à toute commande au SCPML, il faut avoir créé un compte client auprès de notre gestionnaire Mme Ghislaine Durand."]
["Les commandes se font à l'aide d'un fichier excel (téléchargeable sur notre page) dans lequel sont référencés tous les produits et matériels de laboratoires disponibles au SCPML. Ce fichier doit être utilisé pour éditer un bon de commande qu'il faudra envoyer par mail à l'adresse fscm-scpml@univ-amu.fr afin de pouvoir enregistrer et retirer votre commande."]
["ATTENTION le fichier excel est mis à jour régulièrement. Il est nécessaire de le télécharger avant chaque commande."]
["  Quelques Informations Pratiques ..."]
["Les échanges de produits et de matériels sont possibles durant le mois en cours, à la condition qu'ils n'aient pas été ouverts ou endommagés."]
["Un bon de livraison vous sera systématiquement remis pour la vérification de vos factures. ATTENTION, il ne faut pas éditer de bons de commandes à partir de ce document. Attendez la facture envoyée par notre gestionnaire."]
["Les deux derniers jours de chaque mois, le SCPML est fermé pour inventaire et/ou facturation."]
["Au début du mois de juillet, une demande de prévisionnel est envoyée à toutes les équipes utilisatrices du SCPML afin de connaitre leurs besoins en produits et matériels. Il est important d'y répondre pour que nous puissions reconstituer nos stocks."]
["Service Récupération et Evacuation des Déchets (SRED)"]
["Horaires de récupération des déchets : les mardi et jeudi de 14 h à 16 h"]
["N'oubliez pas : \"Chaque laboratoire est responsable des déchets qu'il génère jusqu'à leur élimination complète.\""]
["Règles à suivre pour le conditionnement des déchets:"]
[]
["Les déchets doivent impérativement être conditionnés dans les contenants fournis par le SRED (du Lundi au Vendredi de 9h-12h et 14h-16h). Tout conditionnement de déchets dans des contenants autres que ceux fournis par le SRED et ne respectant pas les règles de remplissage suivantes sera refusé."]
[]
["Le service récupère les déchets chimiques dans les contenants suivants :"]
[]
["Dans les tonnelets noirs sont conditionnés uniquement les déchets souillés : gants, pipettes, papiers souillés, cônes, verreries souillées, verres cassés, silice etc....."]
[]
["! Attention : la présence de BET ou d’acrylamide, doit être clairement indiquée sur le tonnelet"]
["Avant d'être déposés au magasin pour y être stockés en vue de leur élimination, les tonnelets noirs doivent étiquetés avec les étiquettes fournies par le SRED. Seules ces étiquettes seront acceptées et doivent être impérativement collées sur la partie supérieure des tonnelets. En cas de doute sur la façon de remplir les étiquettes, n'hésitez pas à nous contacter."]
["Dans les tonnelets blancs sont conditionnés uniquement des produits divers:  flacons fermés contenant des produits connus ou inconnus, explosifs, mercure, etc......"]
["Attention, ces tonnelets ne doivent jamais être fermés lors de leur dépôt au SRED. Par ailleurs, il est extrêmement important de nous signaler la présence de produits potentiellement dangereux tel que des explosifs (acide picrique, etc...) afin que nous puissions prendre les mesures de sécurités nécessaires à leur stockage et leur transport."]
["Les produits radioactifs ne sont pas acceptés par le SRED. Pour leur élimination, veuillez prendre contact avec l'ingénieur HSE du site."]
["Avant d'être déposés au magasin pour y être stockés en vue de leur élimination, les tonnelets blancs doivent étiquetés avec les étiquettes fournies par le SRED. Seules ces étiquettes seront acceptées et doivent être impérativement collées sur la partie supérieure des tonnelets. En cas de doute sur la façon de remplir les étiquettes, n'hésitez pas à nous contacter."]
["Dans les bidons de 10 litres sont conditionnés :"]
["- les solvants halogénés"]
["- les solvants organiques non halogénés"]
["- les mélanges aqueux"]
["- les acides ou bases (Attention ! pensez à bien vérifier la compatibilité des acides et des bases que vous mélangez)."]
["- les huiles de pompes ou de vidanges"]
[]
["Attention, ne jamais remplir les bidons au delà du trait supérieur de l'étiquette."]
["Avant d'être déposés au magasin pour y être stockés en vue de leur élimination, les bidons doivent étiquetés avec les étiquettes fournies par le SRED. Seules ces étiquettes seront acceptées et doivent être impérativement collées sur la partie latérale des bidons. En cas de doute sur la façon de remplir les étiquettes, n'hésitez pas à nous contacter."]
["Attention, l'acide fluorhydrique ou le mélange para formaldéhyde + sang doivent être conditionnés dans un bidon de 10L qui sera ensuite placé dans un tonnelet blanc. Une indication claire du contenu de ce tonnelet doit être inscrite de manière indélébile."]
["Le service récupère les déchets biologiques dans deux contenants:"]
["Les tonnelets jaunes de 30 litres doivent être utilisés pour les déchets biologiques neutralisés par de l’eau de Javel."]
["Les tonnelets jaunes de 60 litres doivent être utilisés pour les déchets biologiques traditionnels."]
["Les cartons à usage unique  de 60 litres doivent être utilisés pour les produits autoclavés."]
["Les collecteurs d'aiguilles. "]
["Récupération des gros contenants pollués :"]
["Une benne pour l'élimination des gros contenants chimiques et biologiques uniquement est mise à la disposition des utilisateurs devant le SRED . Ce n'est pas une poubelle pour tout venant. Son utilisation doit respecter les règles suivantes :"]
["- Seul les gros contenants (minimum 1 litre) vides de produits chimiques et biologiques peuvent y être jetés."]
["- Ne pas jeter d'emballage de produit explosif car les résidus pourraient suffire à produire une réaction en chaine."]
["La benne est accessible en libre-service du lundi au vendredi toute la journée."]
[" Quelques Informations Pratiques ..."]
["En fin de mois vous devez descendre la fiche de suivi des déchets, dûment remplie."]
["Les dates de fermeture du SRED vous seront communiquées régulièrement via l'actualité du site."]
["Au début du mois de juillet, une demande de prévisionnel est envoyée à toutes les équipes utilisatrices du SRED afin de connaitre leurs besoins en contenant pour les déchets. Il est important d'y répondre pour que nous puissions reconstituer nos stocks."]
["Actualités"]
["Contacts"]
["COXE Catherine "]
["Responsable SCPML/SRED"]
["Tél : 04 13 94 57 45"]
["Email"]
[]
["SAHRAOUI Driss "]
["Opérateur logistique SCPML/SRED"]
["Tél : 04 13 94 57 46"]
["Email"]
[]
["SCIFO Vincenzo "]
["Opérateur logistique SCPML/SRED"]
["Tél : 04 13 94 57 57"]
["Email"]
[]
["Formulaires"]
["COMMANDES-Magasin"]
["Pour chaque demande, l’utilisateur doit télécharger le « Bon de commandes », le compléter et l’envoyer par E-mail à fscm-scpml@univ-amu.fr. Attention: Certaines fonctionnalités utilisées dans le classeur sont compatibles uniquement avec l’environnement Windows. "]
["Fiche simplifiée de suivi des déchets"]
[]
["Les plateformes de la FSCM"]
["Chiropole"]
["CP2M"]
["CRCMM"]
["Magasin & Déchets"]
["PRATIM"]
["SCSV"]
["Spectropole"]
["Mentions Légales"]
["Mentions d’information sur les données personnelles"]
["Cookie Policy"]
["Fédération Sciences Chimiques Marseille @ 2025"]

{"sheet":"MAIL","index":8,"n_rows":15,"n_cols":10,"rows_kept":15,"cut":false,"hidden":true,"merged":[[3,1,3,3]]}
[]
[null,"L'onglet doit s'appeler MAIL"]
[]
[null,"Tab_Mail"]
[null,"G","I","S","C","T","TEXTE",null,"SUJET",{"$f":"\"Commande Magasin - 214-1     \" & TEXT(TODAY(),\"aaaa/mm/jj\")","v":"Commande Magasin - 214-1     2026/04/20"}]
[null,null,null,null,"Noir",3,"Bonjour,",null,"MAIL TO",{"$f":"SAISIE!#REF!","v":{"$error":"#REF!"}}]
[null,null,null,null,"Noir",3,null,null,"MAIL COPIE"]
[null,null,null,null,"Noir",3,"Veuillez trouver ci-joint une commande pour le compte client ",null,"MAIL COPIE CACHEE"]
[null,"x",null,"x","Rouge",3,"214-1 (TP École Centrale)",null,"Chemin PDF","D:\\Dropbox\\DB TRAVAIL\\ECM\\GESTION COMPTABILITE\\BDC Magasin"]
[null,null,null,null,null,null,null,null,"Dernier PDF créé","Commande Magasin - 214-1    (2023-10-13).pdf"]
[null,null,null,null,"Noir",3,"En vous remerciant par avance.",null,"PJ",{"$f":"J9 & \"\\\"&J10","v":"D:\\Dropbox\\DB TRAVAIL\\ECM\\GESTION COMPTABILITE\\BDC Magasin\\Commande Magasin - 214-1    (2023-10-13).pdf"}]
[null,null,null,null,"Noir",3]
[null,null,null,null,"Noir",3,"Bien Cordialement."]
[null,null,null,null,"Noir",3]
[null,null,null,null,"Noir",3,"Arnaud"]